{"text_format":"3","workbook":"xlsx","n_sheets":3,"sheets":["P&Gs","Freedom Park Security Gate BoQ","SUMMARY"],"not_rendered":{"defined_names":3},"read":"whole","date_system":"1900"}

{"sheet":"P&Gs","index":0,"n_rows":2216,"n_cols":9,"rows_kept":2216,"merged":[[0,0,0,8],[687,3,687,4],[700,3,700,4]]}
["FREEDOM PARK SECURITY MAIN ENTRANCE GATE "]
["Bill No. 1","PRELIMINARIES AND GENERAL",{"$nulls":6},"SECTION 1"]
[]
[]
["Item no.","Description",{"$nulls":4},"Quantity","Rate","Amount"]
[]
[null,"PRELIMINARIES "]
[]
[null,"PRINCIPAL BUILDING AGREEMENT"]
[]
[null,"The agreement shall be the Principal Building Agreement"]
[null,"prepared and published by the Joint Building Contracts"]
[null," Committee:Edition 4.1 Code 2101, March 2005. "]
[null," (The JBCC Series 2000 Principal Building Agreement)."]
[]
[null,"PRELIMINARIES"]
[]
[null,"The preliminaries shall be the Preliminaries prepared"]
[null," and published by the Joint Buildin Areement: Code"]
[null," 2103, May 2005. ( The JBCC Series."]
[null," 2000 Preliminaries)"]
[]
[null,"FULL INTENT AND MEANING OF CLAUSES"]
[]
[null,"Tenderers shall be deemed to have referred to the"]
[null,"afore-mentioned documents for the full intent and "]
[null,"meaning of each clause. These clauses are hereinafter "]
[null," referred to by the heading and clause number only."]
[]
[null,"Where satandards clauses or alternatives are not"]
[null,"applicable to thiscontract, such modifications, "]
[null,"corrections or supplements as are necessary are given"]
[null," under each relevant clause headin or withi the"]
[null," relevant schedule."]
[]
[null,"Where an item is not relevant to this specific contract, "]
[null," such item is marked \"N/A\" signifying \" Not applicable\"."]
[]
[null,"PRICING OF CLAUSES"]
[]
[null,"Tenderers shall allow opposite each clause for any"]
[null,"cost involved with complying with such clause.l "]
[null," Any clauses left unpriced shal be deemed to be "]
[null," covered by rates and prices elsewhere "]
[null,"incorporated throughout these bills of quantities."]
[]
[{"$nulls":4},"Carried Forward",{"$nulls":3},{"$f":"SUM(I7:I46)","v":0}]
[]
[{"$nulls":3},1.1]
[{"$nulls":4},"FREEDOM PARK SECURITY ENTRANCE GATE"]
[]
["Bill No 1","PRELIMINARIES AND GENERAL",{"$nulls":6},"SECTION 1"]
[]
[]
["Item no.","Description",{"$nulls":4},"Quantity","Rate","Amount"]
[]
[]
[{"$nulls":4},"Brought Forward",{"$nulls":3},{"$f":"I47","v":0}]
[]
[null,"                     PAYMENT CATEGORIES"]
[]
[null,"Should 'Alternative A', as set out withinin clause"]
[null,"Clause 10.3 of the JBCC 2000 Preliminaries, be used "]
[null,"for the adjustment of preliminaries, then each item "]
[null," priced is to be allocated to one or more categories by"]
[null," the insertion of the letter 'F\" \"V\" or \"T\", as the case "]
[null," may be, against the price in the rate column. These "]
[null," letters shall indicate the relevant categories as follows:"]
[]
[null,"\"F\" -    A fixed amount"]
[null,"\"V\" -    A variable amount in proportion to the value"]
[null,"\"T\" -     An amount in proportion time"]
[]
[null,"SECTION A:PRINCIPAL BUILDING AGREEMENT"]
[]
[null,"DEFINATIONS"]
[]
[null,"Definations and interpretation"]
[null,"  ",null,null,"Clause 1.0"]
[]
[null,"F:………………V:…………………T:………………"]
[]
[null,"OBJECTIVE AND PREPARATION"]
[]
[null,"Offer, acceptance and performance"]
[{"$nulls":4},"Clause 2.0"]
[]
[null,"F:………………V:…………………T:………………"]
[]
[null,"Documents"]
[]
[null,"Clause 3.1 is hereby deleted and no payment  "]
[null,"guarantee will thus be provided by the employer."]
[]
[]
[]
[]
[{"$nulls":4},"Carried Forward",{"$nulls":3},{"$f":"SUM(I58:I95)","v":0}]
[]
[{"$nulls":3},1.2]
[]
[{"$nulls":4},"FREEDOM PARK SECURITY ENTRANCE GATE"]
[]
["Bill No 1","PRELIMINARIES AND GENERAL",{"$nulls":6},"SECTION 1"]
[]
[]
["Item no.","Description",{"$nulls":4},"Quantity","Rate","Amount"]
[]
[]
[{"$nulls":4},"Brought Forward",{"$nulls":3},{"$f":"I98","v":0}]
[]
[null,"Clause 3.3 is hereby amended by deleting the words \""]
[null,"…..within seven (7) calender days of havin received a"]
[null," payment guarantee from the employer in terms of 3.1 "]
[null," \"in the first sentence and subsitituting with\""]
[null,"……within twenty-one (21) calender days of written"]
[null," acceptance of the the contractor's tender.\""]
[null," The second sentence shall remain unchanged."]
[]
[null,"     ",null,null,"Clause 3.0"]
[]
[null,"F:………………V:…………………T:………………"]
[]
[4,"Design responsibility"]
[]
[null,"The following new subclause is hereby added"]
[null," to this clause:"]
[]
[null,"4.4      Notwithstanding the provisions of 4.2, the"]
[null,"          contractor shall  ensure that every such "]
[null,"         nominated or selected subcontractor  shall "]
[null,"          simultaneously with the signing of the relevant   "]
[null,"         nominated or selected subcontract sign and"]
[null,"          deliver to the  employer a Design materials and "]
[null,"          Workmanship Warrantly  and Untertaking in"]
[null,"          favour of the employer or a Materials and "]
[null,"         Workmanship Undertaking strictly in accordance "]
[null,"         with the  instructions or provisions contained "]
[null,"         in the tender  documents for the nominated or"]
[null,"        selected subcontract works."]
[]
[{"$nulls":4},"Clause 4.0"]
[]
[null,"F:………………V:…………………T:………………"]
{"$rows_empty":7}
[{"$nulls":4},"Carried Forward",{"$nulls":3},{"$f":"SUM(I110:I150)","v":0}]
[]
[{"$nulls":3},1.3]
[]
[{"$nulls":4},"FREEDOM PARK SECURITY ENTRANCE GATE"]
[]
[]
["Bill No 1","PRELIMINARIES AND GENERAL",{"$nulls":6},"SECTION 1"]
[]
[]
["Item no.","Description",{"$nulls":4},"Quantity","Rate","Amount"]
[]
[]
[]
[{"$nulls":4},"Brought Forward",{"$nulls":3},{"$f":"I152","v":0}]
[]
[5,"Employer's agents"]
[{"$nulls":4},"Clause 5.0"]
[]
[null,"F:………………V:…………………T:………………"]
[]
[6,"Site representative"]
[{"$nulls":4},"Clause 6.0"]
[]
[null,"F:………………V:…………………T:………………",{"$nulls":4},1,null,{"$f":"G176*H176","v":0}]
[]
[7,"Compliance with regulations"]
[]
[null,"The following new subclause is hereby added to"]
[null," this clause:"]
[]
[null,"Without limiting the generality of the provisions of "]
[null,"clause 7.0 ofthe Agreement, the Contractor's attention"]
[null," is drawn to the provisions of the Construction  "]
[null,"Regulations, 2003 issued in terms of the Occupational  "]
[null,"Health and Safety Act, 1993 in which it is specifically "]
[null,"stated that the Employer shall prepare a documented"]
[null," health and safety specification for the Works"]
[null," ( copy of the relevant specification attached hereto) "]
[null,"and that the Employer shall ensure that the contractor  "]
[null,"has made provision for the cost of health and safety "]
[null,"measures durin the execution of the Works. The "]
[null,"contractor shall price opposite this item for compliance "]
[null,"with the act and the regulations and the provisions of"]
[null," the aforementioned health and saferty specification."]
[]
[{"$nulls":4},"Clause 7.0"]
[]
[null,"F:………………V:…………………T:………………",{"$nulls":4},1,null,{"$f":"G200*H200","v":0}]
[]
[]
[{"$nulls":4},"Carried Forward",{"$nulls":3},{"$f":"SUM(I166:I201)","v":0}]
[]
[{"$nulls":3},1.4]
[]
[{"$nulls":4},"FREEDOM PARK SECURITY ENTRANCE GATE"]
[]
[]
["Bill No 1","PRELIMINARIES AND GENERAL",{"$nulls":6},"SECTION 1"]
[]
[]
["Item no.","Description",{"$nulls":4},"Quantity","Rate","Amount"]
[]
[]
[{"$nulls":4},"Brought Forward",{"$nulls":3},{"$f":"I203","v":0}]
[]
[8,"Works risk"]
[]
[{"$nulls":4},"Clause 8.0"]
[]
[null,"F:………………V:…………………T:………………",{"$nulls":4},1,null,{"$f":"G222*H222","v":0}]
[]
[9,"Indemnities"]
[{"$nulls":4},"Clause 9.0"]
[]
[null,"F:………………V:…………………T:………………",{"$nulls":4},1,null,{"$f":"G227*H227","v":0}]
[]
[10,"Works insurance"]
[]
[{"$nulls":4},"Clause 10.0"]
[]
[null,"F:………………V:…………………T:………………"]
[]
[11,"Liability insurance"]
[]
[{"$nulls":4},"Clause 11.0"]
[]
[null,"F:………………V:…………………T:………………"]
[]
[12,"Effecting insurances"]
[]
[{"$nulls":4},"Clause 12.0"]
[]
[null,"F:………………V:…………………T:………………"]
[]
[13,{"v":13,"d":"13.0"}]
[{"$nulls":4},"No Clause"]
[]
[]
[]
[]
[{"$nulls":4},"Carried Forward",{"$nulls":3},{"$f":"SUM(I216:I249)","v":0}]
[]
[{"$nulls":3},1.5]
[]
[{"$nulls":4},"FREEDOM PARK SECURITY ENTRANCE GATE"]
[]
[]
["Bill No 1","PRELIMINARIES AND GENERAL",{"$nulls":6},"SECTION 1"]
[]
[]
["Item no.","Description",{"$nulls":4},"Quantity","Rate","Amount"]
[]
[]
[{"$nulls":4},"Brought Forward",{"$nulls":3},{"$f":"I253","v":0}]
[]
[14,"Security"]
[]
[null,"Notwithstanding the provisions of sub-clause 14.1, the "]
[null,"contractor shall submit with his tender a letter of "]
[null,"intent from an accredited guarantor, undertaking "]
[null,"to provide the selected JBCC constructio guarantee to  "]
[null,"the Provision of Security format appended to these"]
[null," bills of quantities."]
[]
[null,"The employer reserves the riht to reject a construction"]
[null,"guarantee  if, in the employer,  the guarantor is not"]
[null," accredited."]
[]
[{"$nulls":4},"Clause 14.0"]
[]
[null,"F:………………V:…………………T:………………"]
[]
[null,"EXECUTION"]
[]
[15,"Preparation for and execution of the Works"]
[]
[{"$nulls":4},"Clause 15.0"]
[]
[null,"F:………………V:…………………T:………………"]
[]
[16,"Access to the Works"]
[]
[null,"The contractor shall afford all reasonable access to "]
[null,"other contractors and/or sub-contractors who may be"]
[null," employed by the client to execute other work whether"]
[null," in connection with the Contract Work or not."]
[]
[{"$nulls":4},"Clause 16.0"]
[]
[null,"F:………………V:…………………T:………………"]
[]
[]
[]
[]
[{"$nulls":4},"Carried Forward",{"$nulls":3},{"$f":"SUM(I266:I303)","v":0}]
[{"$nulls":3},1.6]
[]
[{"$nulls":4},"FREEDOM PARK SECURITY ENTRANCE GATE"]
[]
["Bill No 1","PRELIMINARIES AND GENERAL",{"$nulls":6},"SECTION 1"]
[]
[]
["Item no.","Description",{"$nulls":4},"Quantity","Rate","Amount"]
[]
[]
[{"$nulls":4},"Brought Forward",{"$nulls":3},{"$f":"I307","v":0}]
[]
[17,"Contract instructions"]
[]
[{"$nulls":4},"Clause 17.0"]
[]
[null,"F:………………V:…………………T:………………"]
[]
[18,"Setting out of the Works"]
[]
[null,"The Contractor shall notify the Principal Agent if any"]
[null," encroachments of adjoining foundations, buildings, "]
[null," structures, pavements, boundaries,etc. exist in order  "]
[null,"to make the necessary arrangements for the "]
[null,"rectification of any such encroachments."]
[]
[{"$nulls":4},"Clause 18.0"]
[]
[null,"F:………………V:…………………T:………………"]
[]
[19,"Assignment"]
[]
[{"$nulls":4},"Clause 19.0"]
[]
[null,"F:………………V:…………………T:………………"]
[]
[20,"Nominated Subcontractors"]
[]
[{"$nulls":4},"Clause 20.0"]
[]
[null,"F:………………V:…………………T:………………"]
[]
[21,"Selected subcontractors"]
[]
[{"$nulls":4},"Clause 21.0"]
[]
[null,"F:………………V:…………………T:………………"]
[]
[{"$nulls":4},"Carried Forward",{"$nulls":3},{"$f":"SUM(I318:I355)","v":0}]
[]
[{"$nulls":3},1.7]
[]
[{"$nulls":4},"FREEDOM PARK SECURITY ENTRANCE GATE"]
[]
[]
["Bill No 1","PRELIMINARIES AND GENERAL",{"$nulls":6},"SECTION 1"]
[]
[]
["Item no.","Description",{"$nulls":4},"Quantity","Rate","Amount"]
[]
[]
[{"$nulls":4},"Brought Forward",{"$nulls":3},{"$f":"I356","v":0}]
[22,"Employer's Direct Contractors"]
[]
[{"$nulls":4},"Clause 22.0"]
[]
[null,"F:………………V:…………………T:………………"]
[]
[23,"Contractor's Domestic Subcontractors"]
[]
[{"$nulls":4},"Clause 23.0"]
[]
[null,"F:………………V:…………………T:………………"]
[]
[null,"COMPLETION"]
[]
[24,"Practical completion"]
[{"$nulls":4},"Clause 24.0"]
[]
[null,"F:………………V:…………………T:………………"]
[]
[25,"Works completion"]
[]
[{"$nulls":4},"Clause 25.0"]
[]
[null,"F:………………V:…………………T:………………"]
[]
[26,"Final completion"]
[]
[{"$nulls":4},"Clause 26.0"]
[]
[null,"F:………………V:…………………T:………………"]
[]
[27,"Latent defects liability period"]
[]
[{"$nulls":4},"Clause 27.0"]
[]
[null,"F:………………V:…………………T:………………"]
[]
[]
[{"$nulls":4},"Carried Forward",{"$nulls":3},{"$f":"SUM(I369:I406)","v":0}]
[]
[{"$nulls":3},1.8]
[]
[{"$nulls":4},"FREEDOM PARK SECURITY ENTRANCE GATE"]
[]
[]
["Bill No 1","PRELIMINARIES AND GENERAL",{"$nulls":6},"SECTION 1"]
[]
[]
["Item no.","Description",{"$nulls":4},"Quantity","Rate","Amount"]
[]
[]
[{"$nulls":4},"Brought Forward",{"$nulls":3},{"$f":"I408","v":0}]
[28,"Sectional completion"]
[]
[{"$nulls":4},"Clause 28.0"]
[]
[null,"F:………………V:…………………T:………………"]
[]
[]
[29,"Revision of date for practical completion"]
[]
[null,"Subclause 29.1.1 is hereby deleted and subsitituted by "]
[null,"the following:"]
[]
[null,"Exceptionally inclement whether, which shall only "]
[null,"relate to weather with a degree of inclemency which is "]
[null,"materially greater than or is materially beyond the "]
[null,"average inclemency experienced in the past five years"]
[null,"and/or recorded, in terms of available records or  "]
[null,"otherwise,at or for the area in which the site is situated,"]
[null," for the period(s) in questions. Any revision of date of "]
[null,"practical completion which may, in  terms of this clause "]
[null,"be allowed for exceptionally inclement weather, shall  "]
[null,"be related only to those periods of exceptionally "]
[null,"time, during which exceptionally inclement whether"]
[null,"contractor is is experienced and/or recorded in the "]
[null,"vagaries of the weather. area in which the site is  "]
[null,"situated, is exceeded. The inclement weather by which"]
[null," the average periods of therefore to make allowance "]
[null,"for normal"]
[]
[{"$nulls":4},"Clause 29.0"]
[]
[null,"F:………………V:…………………T:………………"]
[]
[30,"Penalty for non-completion"]
[]
[{"$nulls":4},"Clause 30.0"]
[]
[null,"F:………………V:…………………T:………………"]
[]
[]
[{"$nulls":4},"Carried Forward",{"$nulls":3},{"$f":"SUM(I421:I460)","v":0}]
[{"$nulls":3},1.9]
[]
[{"$nulls":4},"FREEDOM PARK SECURITY ENTRANCE GATE"]
[]
[]
["Bill No 1","PRELIMINARIES AND GENERAL",{"$nulls":6},"SECTION 1"]
[]
[]
["Item no.","Description",{"$nulls":4},"Quantity","Rate","Amount"]
[]
[]
[{"$nulls":4},"Brought Forward",{"$nulls":3},{"$f":"I462","v":0}]
[null,"PAYMENT"]
[]
[31,"Interim payment to the contractor"]
[]
[null,"Notwithstandin this or any other clause, materials and"]
[null,"goods storedoff site shall not be included in the ."]
[null,"amount authorised for payment"]
[]
[null,"Subclause 31.9 is hereby amended by  the substitution"]
[null," of the words \"seven (7) calender days\" in the first line"]
[null," by the words \"twenty one (21) calendar days\"."]
[]
[null,"Subclause 31.10 is hereby amended by the"]
[null," substitution of the words \"practical completion\" in the"]
[null,"second and fourth lines by the word \"final completion\"."]
[]
[{"$nulls":4},"Clause 31.0"]
[]
[null,"F:………………V:…………………T:………………"]
[]
[32,"Adjustment to the contract value"]
[]
[null,"Notwithstanding the provisions of subclause 32.13 or "]
[null,"any other clause, all fluctuations in costs shall be for"]
[null," the account of the contractor. See also "]
[null,"subclause 42.4.6"]
[]
[null,"Where prices are submitted by the contractor and/or "]
[null,"sub-contractors during progress of the works in "]
[null," respect of contract and notwithunderstanding the fact"]
[null," that such prices may be used in an interim payment "]
[null,"certificate, there is to be no presumption of   "]
[null,"acceptance. Should the Principal Agent wish to "]
[null,"accept any such . prices prior to the issue of the final "]
[null," certificate, it will be in writing"]
[]
[]
[{"$nulls":4},"Carried Forward",{"$nulls":3},{"$f":"SUM(I474:I510)","v":0}]
[]
[{"$nulls":3},{"v":1.1,"d":"1.10"}]
[]
[{"$nulls":4},"FREEDOM PARK SECURITY ENTRANCE GATE"]
[]
["Bill No 1","PRELIMINARIES AND GENERAL",{"$nulls":6},"SECTION 1"]
[]
[]
["Item no.","Description",{"$nulls":4},"Quantity","Rate","Amount"]
[]
[]
[{"$nulls":4},"Brought Forward",{"$nulls":3},{"$f":"I512","v":0}]
[]
[{"$nulls":4},"Clause 32.0"]
[]
[null,"F:………………V:…………………T:…………………"]
[]
[33,"Recover of expense and loss"]
[]
[{"$nulls":4},"Clause 33.0"]
[]
[null,"F:………………V:…………………T:…………………"]
[]
[34,"Final account and final payment"]
[]
[null,"Subclause 34.11 is hereby amended by the"]
[null,"substitution of the words \" practical completion\" in the\"."]
[null,"third line by the words\" final completion The employer "]
[null,"shall, however, pay interest  to the contractor at the"]
[null,"rate stipulated in clause 34.11 on any amounts  "]
[null,"payable to the  contractor after final completion after  "]
[null,"the date of issue of the certificate of final completion "]
[null,"but only for such period as the settlement of the "]
[null,"final account is delayed by non-perfomance of the  "]
[null,"Principal Agent or the employer of his agents.  "]
[null,"In evaluating non- performance for purposes of this "]
[null,"clause a reasonable time shallbe allowed to the "]
[null,"employer or his agents to respond to any matter "]
[null,"brought to his / their attention and which may affect"]
[null,"the settlement of  the final account."]
[]
[{"$nulls":4},"Clause 34.0"]
[]
[null,"F:………………V:…………………T:………………"]
{"$rows_empty":7}
[{"$nulls":4},"Carried Forward",{"$nulls":3},{"$f":"SUM(I524:I562)","v":0}]
[]
[{"$nulls":3},1.11]
[]
[{"$nulls":4},"FREEDOM PARK SECURITY ENTRANCE GATE"]
[]
[]
["Bill No 1","PRELIMINARIES AND GENERAL",{"$nulls":6},"SECTION 1"]
[]
[]
["Item no.","Description",{"$nulls":4},"Quantity","Rate","Amount"]
[]
[]
[{"$nulls":4},"Brought Forward",{"$nulls":3},{"$f":"I564","v":0}]
[]
[35,"Payment to other parties "]
[]
[{"$nulls":4},"Clause 35.0"]
[]
[null,"F:………………V:…………………T:………………"]
[]
[]
[null,"CANCELLATION"]
[]
[36,"Cancellation by Employer- Contractor's default"]
[]
[{"$nulls":4},"Clause 36.0"]
[]
[null,"F:………………V:…………………T:………………"]
[]
[37,"Cancellation by Employer - loss and damage"]
[]
[{"$nulls":4},"Clause 37.0"]
[]
[null,"F:………………V:…………………T:………………"]
[]
[38,"Cancellation by Contractor- Employer's default"]
[]
[{"$nulls":4},"Clause 38.0"]
[]
[null,"F:………………V:…………………T:………………"]
[]
[39,"Cancellation- cessation of the  Works "]
[]
[{"$nulls":4},"Clause 39.0"]
[]
[null,"F:………………V:…………………T:………………"]
[]
[]
[]
[]
[{"$nulls":4},"Carried Forward"]
[{"$nulls":8},{"$f":"SUM(I577:I614)","v":0}]
[{"$nulls":3},1.12]
[]
[{"$nulls":4},"FREEDOM PARK SECURITY ENTRANCE GATE"]
[]
["Bill No 1","PRELIMINARIES AND GENERAL",{"$nulls":6},"SECTION 1"]
[]
[]
["Item no.","Description",{"$nulls":4},"Quantity","Rate","Amount"]
[]
[]
[{"$nulls":4},"Brought Forward",{"$nulls":3},{"$f":"I616","v":0}]
[]
[null,"DISPUTE"]
[]
[40,"Dispute settlement "]
[]
[{"$nulls":4},"Clause 40.0"]
[]
[null,"F:………………V:…………………T:………………"]
[]
[null,"SUBSTITUTE PROVISIONS"]
[]
[41,"State clauses "]
[]
[{"$nulls":4},"Clause 41.0"]
[]
[null,"CONTRACT VARIABLES"]
[]
[null,"THE SCHEDULE"]
[]
[42,"42.0  Pre-tender information"]
[]
[null,"F:………………V:…………………T:………………"]
{"$rows_empty":17}
[{"$nulls":4},"Carried Forward"]
[{"$nulls":8},{"$f":"SUM(I627:I665)","v":0}]
[{"$nulls":3},1.13]
[]
[{"$nulls":4},"FREEDOM PARK SECURITY ENTRANCE GATE"]
[]
["Bill No 1","PRELIMINARIES AND GENERAL",{"$nulls":6},"SECTION 1"]
[]
[]
["Item no.","Description",{"$nulls":4},"Quantity","Rate","Amount"]
[]
[]
[{"$nulls":4},"Brought Forward",{"$nulls":3},{"$f":"I668","v":0}]
[]
[null,"42.1  CONTRACTING AND OTHER PARTIES"]
[]
[null,"42.1.1"]
[null,"Employer",null,"Freedom Park"]
[]
[null,"Postal address",null,"Cnr Korch & 7th Avenue, Salvokop"]
[{"$nulls":3},"Pretorea"]
[null,"Code",null,"0001"]
[]
[null,"Telephone:",null,"(012) 336 4000"]
[]
[null,"Facsimile:",null,-12]
[]
[null,"42.1.2"]
[null,"P.A /P.M:",null,"Imbeu Developments & Project Managers"]
[null,"(5.1)"]
[]
[null,"Postal address:",null,"Office suite 313"]
[{"$nulls":3},"353 Festival Street, "]
[{"$nulls":3},"Hartfield"]
[null,"Code",null,28]
[]
[null,"Tel:",null,"(012) 004 1796"]
[]
[null,"Fax:"]
[]
[null,"E-Mail",null,"info@imbeu.co.za"]
{"$rows_empty":10}
[{"$nulls":4},"Carried Forward"]
[{"$nulls":8},{"$f":"SUM(I679:I716)","v":0}]
[{"$nulls":3},1.14]
[]
[{"$nulls":4},"FREEDOM PARK SECURITY ENTRANCE GATE"]
[]
[]
["Bill No 1","PRELIMINARIES AND GENERAL",{"$nulls":6},"SECTION 1"]
[]
["Item no.","Description",{"$nulls":4},"Quantity","Rate","Amount"]
[]
[]
[{"$nulls":4},"Brought Forward",{"$nulls":3},{"$f":"I719","v":0}]
[]
[null,"42.2  CONTRACT DETAILS"]
[]
[null,"4.2.2.1 Works description:"]
[]
[null,"           The construction of the main entrance gate"]
[]
[null,"42.2.2 Site description.."]
[null,"           "]
[null,"      The site is located at koch st &, 7th Ave, Salvokop, "]
[null,"      Pretoria, 0002"]
[]
[null,"42.2.3  Work or installations by direct contractors:"]
[]
[null,"(22.2)   Not Applicable"]
[]
[null,"42.2.4   Specific options that are applicable to a State "]
[null,null,"organ only"]
{"$rows_empty":20}
[{"$nulls":4},"Carried Forward"]
[{"$nulls":8},{"$f":"SUM(I730:I764)","v":0}]
[{"$nulls":3},1.15]
[]
[{"$nulls":4},"FREEDOM PARK SECURITY ENTRANCE GATE"]
[]
[]
["Bill No 1","PRELIMINARIES AND GENERAL",{"$nulls":6},"SECTION 1"]
[]
[]
["Item no.","Description",{"$nulls":4},"Quantity","Rate","Amount"]
[]
[]
[{"$nulls":4},"Brought Forward",{"$nulls":3},{"$f":"I770","v":0}]
[]
[null,"(41.0)    Where so:"]
[]
[null,"            (1)     Legislation applicable to the interest rate:"]
[]
[null,"             As determined by the Minister of Justice in "]
[null,"             terms of Section 1 (2) of the Prescribed "]
[null,"             Rate of Interest Act, 1975 (Act no. 55 of "]
[null,"              1975) from time to time"]
[]
[null,"            (2)    Lateral support insurance to be effected"]
[null,"                    by the  Contractor:"]
[null,"                                                                            No"]
[null,"            (3)    Payment will be made for materials "]
[null,null,"      and goods:"]
[null,"                                                                            Yes"]
[]
[null,"            (4)    Dispute resolution by litigation:"]
[{"$nulls":4},"        Yes"]
[]
[null,"            (5)     Extended defects liability period"]
[null,"                     applicable to the following elements:"]
[{"$nulls":4},"         N/A"]
[]
[null,"42.2.5    Possession of the site is intended to be "]
[null,null,"given on: TBC"]
[]
[null,"(15.2.1)  Date to be indicated after contract award"]
[]
[null,"42.2.6    Period for the commencement of the Works "]
[null,"             after the Contract takes possession of the site"]
[]
[null,"(15.3)     Five (5) working days"]
[]
[]
[]
[]
[]
[]
[{"$nulls":4},"Carried Forward",{"$nulls":3},{"$f":"SUM(I782:I820)","v":0}]
[{"$nulls":3},1.16]
[]
[]
[{"$nulls":4},"FREEDOM PARK SECURITY ENTRANCE GATE"]
[]
[]
["Bill No 1","PRELIMINARIES AND GENERAL",{"$nulls":6},"SECTION 1"]
[]
[]
["Item no.","Description",{"$nulls":4},"Quantity","Rate","Amount"]
[]
[]
[{"$nulls":4},"Brought Forward",{"$nulls":3},{"$f":"I822","v":0}]
[]
[null,"42.2.7    For the works as a whole:"]
[]
[null,"(24.3.1)  The date for practical completion and the  "]
[null,"              penalty per calendar day."]
[]
[null,"            The programme and cashflow to be submitted"]
[null,"            within  thirty calendar days after site handover "]
[null,"              will form part of the deliverable milestones. "]
[null,"             Failure to meet these shall be  deemed to be "]
[null,"             in breath of contract. Should the contractor  "]
[null,"             fail to submit both within this period, the r "]
[null,"             Principal Agent and  /or Quantity Surveyor  "]
[null,"            shall impose both and the contracto have "]
[null,"            seven working days to counter such with an  "]
[null,"             acceptable programme and cash-flows. "]
[null,"             Acceptability shall be solely decided by the "]
[null,"             Principal Agent and/or Quantity and/or "]
[null,"             Project Manager."]
[]
[null,"              Date:"]
[]
[null,"              To be indicated after contract award"]
[]
[null,"               Penalty:"]
[]
[null,"                R 10000.00 ( V.A.T Excl.) per day"]
[]
[null,"42.2.8       For the works in sections:"]
[]
[null,"                Not Applicable"]
[]
[null,"42.2.9       The law applicable to this Agreement  "]
[null,null,"shall be that of:"]
[]
[null,"(1.2)          Republic of South Africa"]
[]
[]
[]
[{"$nulls":4},"Carried Forward",{"$nulls":3},{"$f":"SUM(I835:I872)","v":0}]
[{"$nulls":3},1.17]
[]
[{"$nulls":4},"FREEDOM PARK SECURITY ENTRANCE GATE"]
[]
["Bill No 1","PRELIMINARIES AND GENERAL",{"$nulls":6},"SECTION 1"]
[]
["Item no.","Description",{"$nulls":4},"Quantity","Rate","Amount"]
[]
[]
[{"$nulls":4},"Brought Forward",{"$nulls":3},{"$f":"I875","v":0}]
[null,"42.3           INSURANCES"]
[]
[null,"42.3.1        Contract Works insurance to be effected by:"]
[]
[null,"(10.1,10.2,12.1)"]
[]
[null,"                 Contractor"]
[]
[null,"                  For the sum of: Equal to the Contract "]
[null,"                 Sum plus 20%"]
[]
[null,"                  With a deductible of: Equal to 0,1% of the "]
[null,"                  above insured amount"]
[]
[null,"42.3.2         Supplementary insurance is required:"]
[]
[null,"10.1,10.2,1)"]
[]
[null,"            SASRIA"]
[]
[null,"42.3.3         Public liability insurance to be effected by:"]
[]
[null,"(11.1,12.1)"]
[]
[null,"                  Contractor"]
[]
[null,"                  For the sum of: R5,000,000.00"]
[null,"                 ( Five million rand only)"]
[]
[null,"                  With a deductible of: 0.1% of the above "]
[null,"                 insured amount."]
[]
[null,"42.3.4         Support insurance to be effected by the"]
[null,null,"    employer"]
[]
[null,"(11.1,12.1)"]
[null,null,"     Not Applicable"]
[]
[]
[]
[{"$nulls":4},"Carried Forward",{"$nulls":3},{"$f":"SUM(I885:I923)","v":0}]
[{"$nulls":3},1.18]
[]
[{"$nulls":4},"FREEDOM PARK SECURITY ENTRANCE GATE"]
[]
[]
["Bill No 1","PRELIMINARIES AND GENERAL",{"$nulls":6},"SECTION 1"]
[]
[]
["Item no.","Description",{"$nulls":4},"Quantity","Rate","Amount"]
[]
[{"$nulls":4},"Brought Forward",{"$nulls":3},{"$f":"I926","v":0}]
[null,"42.4 DOCUMENTS"]
[]
[null,"42.4.1          Waiver of Contractor's  lien or right of"]
[null,"                    continuing possession is required:"]
[]
[null,"(3.3,15.1.3,31.16.2 )"]
[null," "]
[null,"                  Yes"]
[]
[null,"42.4.2         Construction document copies to be "]
[null,"                  supplied to the Contractor free of charge:"]
[]
[]
[null,"(3.7)            Three (3)"]
[]
[null,"42.4.3          Bills of Quantities/Lump sum document/"]
[null,"                   schedule of rates drawn up in accordance "]
[null,null,"    with:"]
[]
[null,"                 Standard System of Measuring Building "]
[null,"                   Work 1999, Sixth Edition (Revised)"]
[]
[null,"42.4.4          On acceptance of the tender the bills of "]
[null,"                  quantities/lump sum document is to be "]
[null,"                  submitted within working days:  ( 15.1.1)"]
[]
[null,"                   Five (5)"]
[]
[null,"42.4.5        JBCC Engineering General Conditions are  "]
[null,"                  to be included in the contract documents:"]
[]
[null,"(3.4)             No"]
[]
[null,"42.4.6          The contract value is to Fixed and not adjusted"]
[]
[]
[]
[]
[]
[{"$nulls":4},"Carried Forward",{"$nulls":3},{"$f":"SUM(I937:I975)","v":0}]
[{"$nulls":3},1.19]
[]
[]
[{"$nulls":4},"FREEDOM PARK SECURITY ENTRANCE GATE"]
[]
[]
["Bill No 1","PRELIMINARIES AND GENERAL",{"$nulls":6},"SECTION 1"]
[]
[]
["Item no.","Description",{"$nulls":4},"Quantity","Rate","Amount"]
[]
[]
[{"$nulls":4},"Brought Forward",{"$nulls":3},{"$f":"I977","v":0}]
[]
[null,"(31.5.3)        Yes"]
[]
[null,"42.4.7          Details of changes made to the provision  "]
[null,"                  of JBCC standard documentation:"]
[]
[null,"[3.10]","A. Principal Building Agreement"]
[]
[null,null,"Subclause 3.1  deleted"]
[null,null,"Subclause 3.3  amended"]
[null,null,"Subclause 4.4  added"]
[null,null,"Subclause 7.3  added"]
[null,null,"Subclause 14.9 added"]
[null,null,"Subclause 18.5  added"]
[null,null,"Subclause 29.1 .1 subtituted"]
[null,null,"Subclause 31.9 amended"]
[null,null,"Subclause 31.10 amended"]
[null,null,"Clause  32.0 amended"]
[null,null,"Subclause 34.11  amended"]
[]
[null,null,"B. JBCC Preliminaries"]
[]
[null,null,"Clause 2.1 amended"]
[null,null,"Clause 2.2 amended"]
[null,null,"Clause 2.6 amended"]
[null,null,"Clause 3.1 amended"]
[null,null,"Clause 4.1 amended"]
[null,null,"Clause 5.1 amended"]
[null,null,"Clause 5.3 amended"]
[null,null,"Clause 9.2 amended"]
[null,null,"Clause 11.3 amended"]
[null,null,"Clause 16 amended"]
[]
[]
[]
[]
[]
[{"$nulls":4},"Carried Forward",{"$nulls":3},{"$f":"SUM(I990:I1026)","v":0}]
[{"$nulls":3},{"v":1.2,"d":"1.20"}]
[]
[]
[{"$nulls":4},"FREEDOM PARK SECURITY ENTRANCE GATE"]
[]
["Bill No 1","PRELIMINARIES AND GENERAL",{"$nulls":6},"SECTION 1"]
[]
[]
["Item no.","Description",{"$nulls":4},"Quantity","Rate","Amount"]
[]
[{"$nulls":4},"Brought Forward",{"$nulls":3},{"$f":"I1028","v":0}]
[]
[null,"1.0     DEFINATIONS AND INTERPRETATION"]
[]
[44,"Definations and interpretation"]
[]
[{"$nulls":4},"Clause 1.0"]
[]
[null,"F:…………………….V:…………………T:……………."]
[]
[null,"2.0 DOCUMENTS"]
[]
[45,"Checking of documents."]
[]
[null,"The items in these bills of quantities are to be read  "]
[null,"and priced in conjunction with and the descriptions "]
[null,"regarded as amplified by the Model Preambles for  "]
[null,"Trades as recommended and published by the "]
[null,"Association of South African Quantity Surveyors,  "]
[null,"1999 edition, and no claim arisng from brevity of ."]
[null,"description of items fully described in the said Model "]
[null,"Preambles for Trades will be entertained"]
[]
[null,"                                                 ",null,null,"Clause 2.1"]
[]
[null,"F:………………….V:…………………T:……………."]
[]
[46,"Provisional bills of quantities."]
[]
[null,"These bills of quantities shall not be used for "]
[null,"ordering purposes."]
[]
[null,"                                                                     ",null,null,"Clause 2.2"]
[]
[null,"F:…………………….V:…………………T:……………."]
{"$rows_empty":7}
[{"$nulls":4},"Carried Forward",{"$nulls":3},{"$f":"SUM(I1039:I1079)","v":0}]
[{"$nulls":3},1.21]
[]
[{"$nulls":4},"FREEDOM PARK SECURITY ENTRANCE GATE"]
[]
[]
["Bill No 1","PRELIMINARIES AND GENERAL",{"$nulls":6},"SECTION 1"]
[]
[]
["Item no.","Description",{"$nulls":4},"Quantity","Rate","Amount"]
[]
[{"$nulls":4},"Brought Forward",{"$nulls":3},{"$f":"I1081","v":0}]
[]
[47,"Availability of construction documentation."]
[]
[null,"The budgetary allowances allocated for sub-contract "]
[null,"amounts allocated for subsequent trades included in "]
[null,"this document will be separatly procured, based on "]
[null,"multiple procurement of sub-contractorsduring "]
[null,"construction period."]
[]
[{"$nulls":4},"Clause 2.3"]
[]
[null,"F:…………………….V:…………………T:……………."]
[]
[48,"Interest of agents."]
[]
[{"$nulls":4},"Clause 2.4"]
[]
[null,"F:…………………….V:…………………T:……………."]
[]
[49,"Priced documents."]
[]
[null,"Notwithstanding the provisions of this clause, the "]
[null,"contractor shall deposit/submit the priced documents "]
[null,"within the time as stated in A41.4.4 of the Schedule "]
[null,"of Contract Variables."]
[]
[null,"Rates (items)"]
[]
[null,"Where appropriate, rates for similar items in these "]
[null,"bills of quantities should be the same."]
[]
[null,"Prior to signing of the Principal Building Agreement the "]
[null,"Principal  Agent shall be at liberty to make such "]
[null,"adjustments to individual rates, whether they are "]
[null,"Subcontractor's rates or not, as will eliminate errors or  "]
[null,"discrepancies or which he considers to be imbalanced, "]
[null,"unreasonable or unrealistic rates, without altering "]
[null,"the tender sum."]
[]
[]
[{"$nulls":4},"Carried Forward",{"$nulls":3},{"$f":"SUM(I1092:I1131)","v":0}]
[{"$nulls":3},1.22]
[]
[{"$nulls":4},"FREEDOM PARK SECURITY ENTRANCE GATE"]
[]
["Bill No 1","PRELIMINARIES AND GENERAL",{"$nulls":6},"SECTION 1"]
[]
["Item no.","Description",{"$nulls":4},"Quantity","Rate","Amount"]
[]
[{"$nulls":4},"Brought Forward",{"$nulls":3},{"$f":"I1133","v":0}]
[]
[null,"        ",null,null,"Clause 2.5"]
[]
[null,"F:…………………….V:…………………T:……………."]
[]
[50,"Tender submission"]
[]
[null,"This clause is amended by substituting \"JBCC form "]
[null,"of Tender\" with \"Official form of Tender:"]
[]
[{"$nulls":4},"Clause 2.6"]
[]
[null,"F:…………………….V:…………………T:……………."]
[]
[null,"3.0 THE SITE"]
[]
[51,"Define works area."]
[]
[null,"The area of the works to be occupied by the contractor,"]
[null," any restriction on the area and the limit of access or "]
[null," exit will be pointed out to the contractor by the "]
[null,"Principal Agent on handing over the site."]
[]
[{"$nulls":4},"Clause 3.1"]
[]
[null,"F:…………………….V:…………………T:……………."]
[]
[52,"Geotechnical investigation."]
[{"$nulls":4},"Clause 3.2"]
[]
[null,"F:…………………….V:…………………T:……………."]
{"$rows_empty":9}
[{"$nulls":4},"Carried Forward",{"$nulls":3},{"$f":"SUM(I1142:I1181)","v":0}]
[]
[{"$nulls":3},1.23]
[]
[{"$nulls":4},"FREEDOM PARK SECURITY ENTRANCE GATE"]
[]
["Bill No 1","PRELIMINARIES AND GENERAL",{"$nulls":6},"SECTION 1"]
[]
[]
["Item no.","Description",{"$nulls":4},"Quantity","Rate","Amount"]
[]
[{"$nulls":4},"Brought Forward",{"$nulls":3},{"$f":"I1183","v":0}]
[53,"Inspection of site."]
[]
[null,"There will be a compulsory site inspection and briefing "]
[null,"meeting as per the tender advertisement. Failure to "]
[null,"attend will lead to disqualification of the tender."]
[]
[{"$nulls":4},"Clause 3.3"]
[]
[null,"F:…………………….V:…………………T:……………."]
[]
[54,"Existing premises occupied"]
[]
[{"$nulls":4},"Clause 3.4"]
[]
[null,"F:…………………….V:…………………T:……………."]
[]
[55,"Previous work-dimensional accuracy"]
[]
[{"$nulls":4},"Clause 3.5"]
[]
[null,"F:…………………….V:…………………T:……………."]
[]
[56,"Previous work-defects"]
[]
[{"$nulls":4},"Clause 3.6"]
[]
[null,"F:…………………….V:…………………T:……………."]
[]
[57,"Service-known"]
[]
[{"$nulls":4},"Clause 3.7"]
[]
[null,"F:…………………….V:…………………T:……………."]
[]
[58,"Service-known"]
[{"$nulls":4},"Clause 3.8"]
[]
[null,"F:…………………….V:…………………T:……………."]
[]
[]
[{"$nulls":4},"Carried Forward",{"$nulls":3},{"$f":"SUM(I1194:I1233)","v":0}]
[{"$nulls":3},1.24]
[]
[{"$nulls":4},"FREEDOM PARK SECURITY ENTRANCE GATE"]
[]
[]
["Bill No 1","PRELIMINARIES AND GENERAL",{"$nulls":6},"SECTION 1"]
[]
[]
["Item no.","Description",{"$nulls":4},"Quantity","Rate","Amount"]
[]
[{"$nulls":4},"Brought Forward",{"$nulls":3},{"$f":"I1235","v":0}]
[59,"Protection of trees"]
[]
[{"$nulls":4},"Clause 3.9"]
[]
[null,"F:…………………….V:…………………T:……………."]
[]
[60,"Articles of value"]
[]
[{"$nulls":4},"Clause 3.10"]
[]
[null,"F:…………………….V:…………………T:……………."]
[]
[61,"Inspection of adjoining properties"]
[]
[{"$nulls":4},"Clause 3.11"]
[]
[null,"F:…………………….V:…………………T:……………."]
[]
[null,"4.0MANAGEMENT OF CONTRACT"]
[]
[62,"Management of the works"]
[]
[null,"The Contractor shall obtain all necessary particulars of "]
[null,"Subcontractors' work timeously so that provision for "]
[null,"recesses, chases,holes,etc.can  be made"]
[]
[{"$nulls":4},"Clause 4.1"]
[]
[null,"F:…………………….V:…………………T:…………….",{"$nulls":4},1,null,{"$f":"G1275*H1275","v":0}]
[]
[63,"Programming for the Works"]
[]
[{"$nulls":4},"Clause 4.2"]
[]
[null,"F:…………………….V:…………………T:…………….",{"$nulls":4},1,null,{"$f":"G1281*H1281","v":0}]
[]
[]
[{"$nulls":4},"Carried Forward",{"$nulls":3},{"$f":"SUM(I1246:I1282)","v":0}]
[]
[{"$nulls":3},1.25]
[]
[{"$nulls":4},"FREEDOM PARK SECURITY ENTRANCE GATE"]
[]
[]
["Bill No 1","PRELIMINARIES AND GENERAL",{"$nulls":6},"SECTION 1"]
[]
["Item no.","Description",{"$nulls":4},"Quantity","Rate","Amount"]
[]
[{"$nulls":4},"Brought Forward",{"$nulls":3},{"$f":"I1284","v":0}]
[64,"Progress meetings"]
[]
[{"$nulls":4},"Clause 4.3"]
[]
[null,"F:…………………….V:…………………T:…………….",{"$nulls":4},1,null,{"$f":"G1300*H1300","v":0}]
[]
[]
[65,"Technical meetings"]
[]
[{"$nulls":4},"Clause 4.4"]
[]
[]
[null,"F:…………………….V:…………………T:…………….",{"$nulls":4},1,null,{"$f":"G1308*H1308","v":0}]
[]
[]
[]
[66,"labour and plant records"]
[]
[{"$nulls":4},"Clause 4.5"]
[]
[null,"F:…………………….V:…………………T:…………….",{"$nulls":4},1,0,{"$f":"G1316*H1316","v":0}]
[]
[null,"5.0 SAMPLES AND SHOP DRAWINGS"]
[]
[67,"Samples of materials"]
[]
[{"$nulls":4},"Clause 5.1"]
[]
[null,"F:…………………….V:…………………T:……………."]
[]
[68,"Workmanship samples"]
[]
[{"$nulls":4},"Clause 5.2"]
[]
[null,"F:…………………….V:…………………T:……………."]
[]
[]
[]
[]
[]
[{"$nulls":4},"Carried Forward",{"$nulls":3},{"$f":"SUM(I1295:I1333)","v":0}]
[]
[{"$nulls":3},1.26]
[]
[{"$nulls":4},"FREEDOM PARK SECURITY ENTRANCE GATE"]
[]
[]
["Bill No 1","PRELIMINARIES AND GENERAL",{"$nulls":6},"SECTION 1"]
[]
[]
["Item no.","Description",{"$nulls":4},"Quantity","Rate","Amount"]
[]
[]
[{"$nulls":4},"Brought Forward",{"$nulls":3},{"$f":"I1336","v":0}]
[]
[69,"Shop drawings"]
[]
[{"$nulls":4},"Clause 5.3"]
[]
[null,"F:…………………….V:…………………T:……………."]
[]
[70,"Complaince with manufactures; instructions"]
[]
[{"$nulls":4},"Clause 5.4"]
[]
[]
[null,"F:…………………….V:…………………T:……………."]
[]
[]
[null,"6.0 TEMPORARY WORKS AND PLANT"]
[]
[71,"Deposists and fees"]
[]
[{"$nulls":4},"Clause 6.1"]
[]
[null,"F:…………………….V:…………………T:……………."]
[]
[72,"Enclosure of the works "]
[]
[{"$nulls":4},"Clause 6.2"]
[]
[]
[null,"F:…………………….V:…………………T:…………….",{"$nulls":4},1,null,{"$f":"G1378*H1378","v":0}]
[]
[73,"Advertising"]
[]
[{"$nulls":3},"                              Clause 6.3"]
[]
[null,"F:………………V:…………………T:………………"]
[]
[]
[]
[]
[{"$nulls":4},"Carried Forward",{"$nulls":3},{"$f":"SUM(I1349:I1387)","v":0}]
[{"$nulls":3},1.27]
[]
[{"$nulls":4},"FREEDOM PARK SECURITY ENTRANCE GATE"]
[]
["Bill No 1","PRELIMINARIES AND GENERAL",{"$nulls":6},"SECTION 1"]
[]
[]
["Item no.","Description",{"$nulls":4},"Quantity","Rate","Amount"]
[]
[]
[{"$nulls":4},"Brought Forward",{"$nulls":3},{"$f":"I1389","v":0}]
[]
[74,"Plant,equipment,sheds and offices"]
[]
[{"$nulls":3},"                              Clause 6.4"]
[]
[null,"F:………………V:…………………T:…………………",{"$nulls":4},1,null,{"$f":"G1406*H1406","v":0}]
[]
[75,"Main noticeboard"]
[]
[{"$nulls":3},"                              Clause 6.5",null,null,1,null,{"$f":"G1410*H1410","v":0}]
[]
[null,"F:………………V:…………………T:…………………"]
[]
[76,"Subcontractors notice board"]
[]
[{"$nulls":3},"                              Clause 6.5"]
[]
[null,"F:………………V:…………………T:…………………"]
[]
[null,"7.0 TEMPORARY SERVICES"]
[]
[77,"Location"]
[]
[{"$nulls":3},"                              Clause 7.1"]
[]
[null,"F:………………V:…………………T:…………………"]
[]
[78,"Water"]
[]
[{"$nulls":3},"                              Clause 7.2"]
[]
[null,"F:………………V:…………………T:…………………",{"$nulls":4},1,null,{"$f":"G1432*H1432","v":0}]
[]
[79,"Electricity"]
[]
[]
[]
[{"$nulls":3},"                              Clause 7.3"]
[]
[]
[{"$nulls":4},"Carried Forward",{"$nulls":3},{"$f":"SUM(I1400:I1437)","v":0}]
[{"$nulls":3},1.28]
[]
[{"$nulls":4},"FREEDOM PARK SECURITY ENTRANCE GATE"]
[]
[]
["Bill No 1","PRELIMINARIES AND GENERAL",{"$nulls":6},"SECTION 1"]
[]
[]
["Item no.","Description",{"$nulls":4},"Quantity","Rate","Amount"]
[]
[]
[{"$nulls":4},"Brought Forward",{"$nulls":3},{"$f":"I1441","v":0}]
[null,"F:………………V:…………………T:………………"]
[]
[80,"Telecommunication equipment"]
[]
[{"$nulls":3},"                              Clause 7.4"]
[]
[null,"F:………………V:…………………T:…………………"]
[]
[81,"Ablution facilities"]
[]
[{"$nulls":3},"                              Clause 7.5"]
[]
[null,"F:………………V:…………………T:………………"]
[]
[null,"8.0 PRIME COST AMOUNTS"]
[]
[82,"Responsility for prime cost amounts"]
[]
[{"$nulls":3},"                              Clause 8.1"]
[]
[null,"F:………………V:…………………T:………………"]
[]
[null,"9.0 ATTANDANCE ON NOMINATED/SELECTED"]
[null,"SUBCONTRACTOR"]
[]
[83,"General attendance"]
[]
[{"$nulls":3},"                              Clause 9.1"]
[]
[null,"F:………………V:…………………T:………………",{"$nulls":4},1,null,{"$f":"G1483*H1483","v":0}]
{"$rows_empty":9}
[{"$nulls":4},"Carried Forward",{"$nulls":3},{"$f":"SUM(I1453:I1491)","v":0}]
[{"$nulls":3},1.29]
[]
[{"$nulls":4},"FREEDOM PARK SECURITY ENTRANCE GATE"]
[]
["Bill No 1","PRELIMINARIES AND GENERAL",{"$nulls":6},"SECTION 1"]
[]
[]
["Item no.","Description",{"$nulls":4},"Quantity","Rate","Amount"]
[]
[]
[{"$nulls":4},"Brought Forward",{"$nulls":3},{"$f":"I1493","v":0}]
[84,"Special attendance"]
[]
[null,"The last three words contained within Clauses 9.2, "]
[null,"ie.\"… in the schedule\" shall be deleted and replaced"]
[null," by'.... within the relevant item incorporated in these  "]
[null,"bills of quantities\"."]
[]
[{"$nulls":3},"                              Clause 9.2"]
[]
[null,"F:………………V:…………………T:………………"]
[]
[85,"Commissioning-fuel,water and power"]
[]
[{"$nulls":3},"                              Clause 9.3"]
[]
[null,"F:………………V:…………………T:………………"]
[]
[null,"10.0 FINANCIAL ASPECTS"]
[]
[86,"Statutory taxes,duties and levies."]
[]
[null,"Provision is made in the summary of these bills of "]
[null,"quantities inclusion of Value Added Tax (VAT)"]
[]
[{"$nulls":3},"                              Clause 10.1"]
[]
[null,"F:………………V:…………………T:………………"]
[]
[87,"Payment of preliminaries"]
[]
[{"$nulls":3},"                              Clause 10.2"]
[]
[null,"F:………………V:…………………T:………………"]
[]
[88,"Adjusment of preliminaries"]
[]
[]
[]
[]
[]
[{"$nulls":4},"Carried Forward",{"$nulls":3},{"$f":"SUM(I1504:I1543)","v":0}]
[{"$nulls":3},{"v":1.3,"d":"1.30"}]
[]
[{"$nulls":4},"FREEDOM PARK SECURITY ENTRANCE GATE"]
[]
["Bill No 1","PRELIMINARIES AND GENERAL",{"$nulls":6},"SECTION 1"]
[]
[]
["Item no.","Description",{"$nulls":4},"Quantity","Rate","Amount"]
[]
[]
[{"$nulls":4},"Brought Forward",{"$nulls":3},{"$f":"I1545","v":0}]
[null,"Should the contractor select Alternative B but fails tp"]
[null,"provide the information required prior to signing of the "]
[null,"contract, the Principal Agent shall have the right to  "]
[null,"select either Alternative A or B for the adjusment of "]
[null,"preliminaries. If the Principal Agents selects"]
[null," Alternative B he shall be  entitled to make assumptions "]
[null,"at his discretion regarding  the information which the "]
[null,"contractor would normally have provided prior to the "]
[null,"signing of the contract"]
[]
[{"$nulls":3},"                              Clause 10.3"]
[]
[null,"F:………………V:…………………T:………………"]
[]
[]
[]
[89,"Payment certificate cash flow"]
[]
[{"$nulls":3},"                              Clause 10.4"]
[]
[null,"F:………………V:…………………T:………………"]
[]
[null,"11.0 GENERAL"]
[]
[90,"Protection of the Works"]
[]
[{"$nulls":3},"                              Clause 11.1"]
[]
[null,"F:………………V:…………………T:………………"]
[]
[91,"Protection/isolation of existing/sectionally "]
[null,"occupied Works"]
[]
[{"$nulls":3},"                              Clause 11.2"]
[]
[null,"F:………………V:…………………T:………………"]
[]
[]
[]
[{"$nulls":4},"Carried Forward",{"$nulls":3},{"$f":"SUM(I1556:I1593)","v":0}]
[{"$nulls":3},1.31]
[]
[{"$nulls":4},"FREEDOM PARK SECURITY ENTRANCE GATE"]
[]
[]
["Bill No 1","PRELIMINARIES AND GENERAL",{"$nulls":6},"SECTION 1"]
[]
[]
["Item no.","Description",{"$nulls":4},"Quantity","Rate","Amount"]
[]
[]
[{"$nulls":4},"Brought Forward",{"$nulls":3},{"$f":"I1596","v":0}]
[]
[92,"Site security"]
[]
[null,"The contractor shall provide and maintain "]
[null,"twenty- four hour site  security and loss control system "]
[null," all the satisfaction of the principal agent. It is  "]
[null,"envisaged that these procedures will incoporate,"]
[null,"inter ali,gate control for personnel and vehicles, "]
[null,"individuals entry permits, regular security patrols and"]
[null," the like."]
[]
[{"$nulls":3},"                              Clause 11.3"]
[]
[null,"F:………………V:…………………T:………………"]
[]
[93,"Notice before covering work"]
[]
[{"$nulls":3},"                              Clause 11.4"]
[]
[null,"F:………………V:…………………T:………………"]
[]
[94,"Disturbance"]
[]
[{"$nulls":3},"                              Clause 11.5"]
[]
[null,"F:………………V:…………………T:………………"]
[]
[95,"Enviromental disturbance"]
[]
[{"$nulls":3},"                              Clause 11.6"]
[]
[null,"F:………………V:…………………T:………………"]
[]
[96,"Works cleaning and clearing"]
[{"$nulls":3},"                              Clause 11.7"]
[]
[null,"F:………………V:…………………T:………………"]
[]
[]
[{"$nulls":4},"Carried Forward",{"$nulls":3},{"$f":"SUM(I1608:I1646)","v":0}]
[{"$nulls":3},1.32]
[]
[{"$nulls":4},"FREEDOM PARK SECURITY ENTRANCE GATE"]
[]
[]
["Bill No 1","PRELIMINARIES AND GENERAL",{"$nulls":6},"SECTION 1"]
[]
[]
["Item no.","Description",{"$nulls":4},"Quantity","Rate","Amount"]
[]
[]
[{"$nulls":4},"Brought Forward",{"$nulls":3},{"$f":"I1648","v":0}]
[]
[97,"Vermin"]
[]
[{"$nulls":3},"                              Clause 11.8"]
[]
[null,"F:………………V:…………………T:………………"]
[]
[98,"Overhand work"]
[]
[{"$nulls":3},"                              Clause 11.9"]
[]
[null,"F:………………V:…………………T:………………"]
[]
[99,"Instruction manuals and guarantees"]
[]
[{"$nulls":3},"                            Clause 11.10"]
[]
[null,"F:………………V:…………………T:………………"]
[]
[100,"As built information"]
[]
[{"$nulls":3},"                            Clause 11.11"]
[]
[null,"F:………………V:…………………T:………………"]
[]
[]
[101,"Tenant installations"]
[]
[{"$nulls":3},"                            Clause 11.12"]
[]
[null,"F:………………V:…………………T:………………"]
[]
[null,"12.0 SCHEDULE OF VARIABLES"]
[]
[null,"12.1    PRE-TENDER INFORMATION"]
[]
[102,"Pre-tender information is given hereunder:"]
[]
[]
[{"$nulls":4},"Carried Forward",{"$nulls":3},{"$f":"SUM(I1660:I1698)","v":0}]
[{"$nulls":3},1.33]
[]
[{"$nulls":4},"FREEDOM PARK SECURITY ENTRANCE GATE"]
[]
[]
["Bill No 1","PRELIMINARIES AND GENERAL",{"$nulls":6},"SECTION 1"]
[]
[]
["Item no.","Description",{"$nulls":4},"Quantity","Rate","Amount"]
[]
[]
[{"$nulls":4},"Brought Forward",{"$nulls":3},{"$f":"I1700","v":0}]
[]
[null,"Clause"]
[null,"( and reference)"]
[]
[null,"12.1.1  Provisional bills of quantities"]
[]
[null,"(2.2)  The quantities are provisinal"]
[]
[null,"         Yes"]
[null,"12.1.2  Availability of construction documentation."]
[]
[null,"(2.3)  Construction documentation is not complete."]
[]
[null,"        No"]
[]
[null,"12.1.3 Interesting agent"]
[]
[null,"(2.4)  The agent have nointerest in this project "]
[null,"           apart from their professional interest"]
[]
[null,"12.1.4   Defined Worksarea"]
[]
[null,"(3.1)   The contractor will not be allowed to extend "]
[null,"            his operations beyond the areas indicated "]
[null,"            on the drawings or defined by the "]
[null,"             Principal Agent"]
[]
[null,"12.1.5 Geotechnical investigation"]
[]
[null,"(32.)    A Report is available for inspection at the "]
[null,"           civil and Structural  Engineer's offices"]
[]
[null,"12.1.6   existing premises occupied"]
[]
[null,"(3.4)   Yes"]
[]
[]
[{"$nulls":4},"Carried Forward",{"$nulls":3},{"$f":"SUM(I1712:I1748)","v":0}]
[{"$nulls":3},1.34]
[]
[{"$nulls":4},"FREEDOM PARK SECURITY ENTRANCE GATE"]
[]
["Bill No 1","PRELIMINARIES AND GENERAL",{"$nulls":6},"SECTION 1"]
[]
[]
["Item no.","Description",{"$nulls":4},"Quantity","Rate","Amount"]
[]
[]
[{"$nulls":4},"Brought Forward",{"$nulls":3},{"$f":"I1750","v":0}]
[]
[null,"12.1.7   Previous work- dimentional accuracy"]
[]
[null,"              Not applicable"]
[]
[null,"12.1.8   Previous work- defects"]
[]
[null,"(3.6)      Not aplicable"]
[]
[null,"12.1.9   Services- known."]
[]
[null,"(3.7)      Not aplicable"]
[]
[null,"12.1.10  Protecton of trees."]
[]
[null,"(3.9)      No specific requirements"]
[]
[null,"12.1.11   Inspection of adjoining properties"]
[]
[null,"(3.11)      Not aplicable"]
[]
[null,"12.1.12  Enclosure of the Works"]
[]
[null,"(6.2)      Not aplicable"]
[]
[null,"12.1.13 Office"]
[]
[null,"(6.4.3)   The contarctor shall provide, maintaining and  "]
[null,"               remove on completion one meeting room at "]
[null,"               least 8.0 X5.0 m on plan  and 2.6m high  "]
[null,"               internally.The room shall be well lit and  fitted"]
[null,"               with threepower outlets,.The contractor shall  "]
[null,"               furnish the room with a large table and at ."]
[null,"              least ten chairs"]
[]
[]
[]
[]
[]
[]
[{"$nulls":4},"Carried Forward",{"$nulls":3},{"$f":"SUM(I1761:I1800)","v":0}]
[{"$nulls":3},1.35]
[]
[{"$nulls":4},"FREEDOM PARK SECURITY ENTRANCE GATE"]
[]
["Bill No 1","PRELIMINARIES AND GENERAL",{"$nulls":6},"SECTION 1"]
[]
[]
["Item no.","Description",{"$nulls":4},"Quantity","Rate","Amount"]
[]
[]
[{"$nulls":4},"Brought Forward",{"$nulls":3},{"$f":"I1802","v":0}]
[]
[null,"12.1.14   Main Notice board",{"$nulls":4},2]
[]
[null,"(6.5)      one main notice board shall be proveded"]
[]
[null,"12.1.15  Subcontractor notice board"]
[]
[null,"(6.6)     A notice board is reguired."]
[]
[{"$nulls":4},"No"]
[]
[null,"12.1.16   Water"]
[]
[null,"(7.2)        Option A (by contractor)"]
[]
[{"$nulls":4},"Yes"]
[null,"12.1.17    Electricity"]
[]
[null,"                  Option A (by contractor)"]
[]
[{"$nulls":4},"Yes"]
[]
[null,"12.1.18    Telephone "]
[]
[null,"                  Facsimile",null,null,"Yes"]
[]
[null,"                  E-mail",null,null,"Yes"]
[]
[null,"12.1.19     Ablution Facilities"]
[]
[null,"                  Option A (by contractor)"]
[]
[{"$nulls":4},"Yes"]
[null,"12.1.20  Protection of existing/sectionally occupied works"]
[]
[null,"(11.2)  Protection is reguired"]
[{"$nulls":4},"No"]
[]
[]
[]
[{"$nulls":4},"Carried Forward",{"$nulls":3},{"$f":"SUM(I1813:I1852)","v":0}]
[{"$nulls":3},1.36]
[]
[{"$nulls":4},"FREEDOM PARK SECURITY ENTRANCE GATE"]
[]
["Bill No 1","PRELIMINARIES AND GENERAL",{"$nulls":6},"SECTION 1"]
[]
[]
["Item no.","Description",{"$nulls":4},"Quantity","Rate","Amount"]
[]
[]
[{"$nulls":4},"Brought Forward",{"$nulls":3},{"$f":"I1854","v":0}]
[]
[null,"12.1.21  Special Attendance"]
[]
[null,"(9.2)   Details of special attendance reguired shall be as "]
[null,"           detailed  within  the otens relevant to each  "]
[null,"           particular sub-contract as  incoporated "]
[null,"          hereinafter in these bills of quantities."]
[]
[null,"12.1.22  Protection of the Works"]
[]
[null,"(11.1)  No specific reguirements"]
[]
[null,"12.1.23  Disturbance"]
[]
[null,"(11.5)  Whilst the employershall not not impose  "]
[null,"            restrictions upon  the Contractor's working "]
[null,"            hours, the contractor shall take all measure's "]
[null,"           available to him in order to minimise noisy  "]
[null,"           during business hours.Such measures will "]
[null,"           include,inter alia,   the  use of silent "]
[null,"           compressors and strict control of workmen."]
[]
[null,"12.1.24  Enviromental disturbance"]
[]
[null,"(11.6)        Not aplicable"]
[]
[null,"12.2       POST-TENDER INFORMATION"]
[]
[103,"Post tender information reguired under clauses 12.2.1 "]
[null,"to 12.2.3 shall be completed prior to contract signing, "]
[null,"in consultation with the contractor."]
{"$rows_empty":8}
[{"$nulls":4},"Carried Forward",{"$nulls":3},{"$f":"SUM(I1865:I1903)","v":0}]
[{"$nulls":3},1.37]
[]
[{"$nulls":4},"FREEDOM PARK SECURITY ENTRANCE GATE"]
[]
["Bill No 1","PRELIMINARIES AND GENERAL",{"$nulls":6},"SECTION 1"]
[]
["Item no.","Description",{"$nulls":4},"Quantity","Rate","Amount"]
[]
[]
[{"$nulls":4},"Brought Forward",{"$nulls":3},{"$f":"I1905","v":0}]
[]
[null,"SECTION C: SPECIFIC PRELIMINARIES"]
[]
[null,"SUPPLEMENATRY DOCUMENTATION"]
[]
[104,"As built drawings"]
[]
[null,"The position of construction breaks and the  extent of "]
[null,"individual concrete pours are to be recorded by the  "]
[null,"contractor on the Structural engineering drawings and"]
[null,"are to be submitted to the  Principal Agent and the "]
[null,"strctural engineer for their records."]
[]
[null,"F:………………V:…………………T:………………"]
[]
[105,"Overtime"]
[]
[null,"Should overtime be reguired to be worked for any "]
[null,"reason watsoever, the costs of such overtime are to   "]
[null,"be  borne by the contractor unless the Principa Agent  "]
[null,"specifically authorized in writing, prior to the execution  "]
[null,"therefore,that costs for such overtime are to be borne "]
[null,"by the employer."]
[]
[null,"F:………………V:…………………T:………………"]
[]
[106,"Site Instruction"]
[]
[null,"Contractor instruction issued on site are to be  "]
[null,"recorded in triplicate in an instruction book which  is "]
[null,"to be maintained on site by the contractor."]
[]
[null,"F:………………V:…………………T:………………"]
{"$rows_empty":7}
[{"$nulls":4},"Carried Forward",{"$nulls":3},{"$f":"SUM(I1915:I1954)","v":0}]
[{"$nulls":3},1.38]
[]
[]
[{"$nulls":4},"FREEDOM PARK SECURITY ENTRANCE GATE"]
[]
["Bill No 1","PRELIMINARIES AND GENERAL",{"$nulls":6},"SECTION 1"]
[]
["Item no.","Description",{"$nulls":4},"Quantity","Rate","Amount"]
[]
[]
[{"$nulls":4},"Brought Forward",{"$nulls":3},{"$f":"I1956","v":0}]
[]
[107,"Labour Record."]
[]
[null,"At the end of each week the contractor shall provide "]
[null,"the Principal Agent with a written record, in schedule "]
[null,"form, reflecting the number and description of "]
[null,"tradesmen and labourers employed by him and all "]
[null,"sub- contractors on the works each day of that week"]
[]
[null,"F:………………V:…………………T:…………………"]
[]
[]
[108,"Plan record."]
[]
[null,"At the end of each week the contractor shall provide  "]
[null,"the Principal Agent with a writte record, in schedule"]
[null,"form, reflecting the number, type and capacity of all  "]
[null,"plant, excluding hand tools, currently used on the"]
[null," works each day of that week."]
[]
[null,"F:………………V:…………………T:…………………"]
[]
[109,"Non Cession of Monies"]
[]
[null,"The contractor shall not cede assign hid rights or   "]
[null,"claims to any monies due or to become due under "]
[null,"this contract."]
[]
[null,"F:………………V:…………………T:…………………"]
{"$rows_empty":11}
[{"$nulls":4},"Carried Forward",{"$nulls":3},{"$f":"SUM(I1967:I2005)","v":0}]
[{"$nulls":3},1.39]
[]
[{"$nulls":4},"FREEDOM PARK SECURITY ENTRANCE GATE"]
[]
["Bill No 1","PRELIMINARIES AND GENERAL",{"$nulls":6},"SECTION 1"]
[]
["Item no.","Description",{"$nulls":4},"Quantity","Rate","Amount"]
[]
[]
[{"$nulls":4},"Brought Forward",{"$nulls":3},{"$f":"I2008","v":0}]
[]
[110,"HIV/ AIDS Awareness.",{"$nulls":4},"PS"]
[]
[null,"It is eguired of the contractor to thorouhly study the  "]
[null,"HIV/AIDS Specification(PW1544) of the Department "]
[null,"of Public Works that must be read together with and   "]
[null,"is deemed to be incoporated undre this section of the"]
[null,"Bills of Quantitites. Provision for pricing of HIV/AIDS "]
[null,"awareness is made under items C10.1 to C10.5 "]
[null,"hereafter and it is expilicity pointed  out that "]
[null,"all reguirements of the  aforemeetioned  specification "]
[null,"are deemed to be priced hereunder,as the said items "]
[null,"or extras to the contract in this regard shall be "]
[null,"entertained."]
[]
[null,"The contractor must take note that compliance with  "]
[null," the HIV/AIDS Specification is compulsory. In the "]
[null,"event of partial or total non- compliance, the Principal  "]
[null,"Agent, notwithstanding the provisions of Clause A31.0  "]
[null,"Section A or any other Clause to the contray, reserves "]
[null,"the right to delay issuing any progress payment "]
[null,"certificate until the contractor provides satisfactory , "]
[null,"proof of compliance. The contractor shall not be"]
[null," entitled to any compensation whatsoever nature "]
[null,"including interest due to such delay of payment."]
[]
[111,"Awareness Champion,"]
[]
[null,"Selection , appointment, briefing and making available  "]
[null,"of an Awareness Champion including provision of all "]
[null,"relevant services all accordance of HIV/AIDS ."]
[null,"Specification"]
[]
[null,"F:………………V:…………………T:………………",{"$nulls":4},1,null,{"$f":"G2052*H2052","v":0}]
{"$rows_empty":7}
[{"$nulls":4},"Carried Forward",{"$nulls":3},{"$f":"SUM(I2018:I2055)","v":0}]
[{"$nulls":3},{"v":1.4,"d":"1.40"}]
[]
[{"$nulls":4},"FREEDOM PARK SECURITY ENTRANCE GATE"]
[]
["Bill No 1","PRELIMINARIES AND GENERAL",{"$nulls":6},"SECTION 1"]
[]
[]
["Item no.","Description",{"$nulls":4},"Quantity","Rate","Amount"]
[]
[]
[{"$nulls":4},"Brought Forward",{"$nulls":3},{"$f":"I2060","v":0}]
[]
[112,"Awareness Workshop"]
[]
[null,"Selection and appointment of compitent of Service "]
[null,"Provider approved by the Principle Agent, provision of "]
[null,"a Service Provider Workshop Plan and suitable venue, "]
[null,"conducting awareness workshop by means of  "]
[null,"traditional and /or modern multi-media techniques,"]
[null,"including follow-up courses,making available all tution "]
[null,"material and performing assessment procedures in  "]
[null,"accordance with the HIV/AIDS the Specification."]
[]
[null,"F:………………V:…………………T:…………………",{"$nulls":4},1,null,{"$f":"G2084*H2084","v":0}]
[]
[]
[113,"Posters,Booklets,Videos,etc."]
[]
[null,"Provision, displaying, maintaining and replacing "]
[null,"necessary of four plastic laminated posters, booklets "]
[null,"and educational video,etc for the duration of "]
[null,"construction period,in all accordance with the "]
[null,"HIV/AIDS Specification."]
[]
[null,"F:………………V:…………………T:…………………",{"$nulls":4},1,null,{"$f":"G2095*H2095","v":0}]
[]
[114,"Access to Condoms"]
[]
[null,"Provision and maintenace condoms despensers fixed "]
[null,"in position, including male and female condoms, "]
[null,"replenishing male and female condoms on a daily "]
[null,"basis as required for the duration of the construction "]
[null,"period,all accordance with HIV/AIDS Specification."]
[]
[null,"F:………………V:…………………T:…………………",{"$nulls":4},1,null,{"$f":"G2105*H2105","v":0}]
[]
[]
[]
[]
[]
[{"$nulls":4},"Carried Forward",{"$nulls":3},{"$f":"SUM(I2071:I2106)","v":0}]
[{"$nulls":3},1.41]
[]
[{"$nulls":4},"FREEDOM PARK SECURITY ENTRANCE GATE"]
[]
["Bill No 1","PRELIMINARIES AND GENERAL",{"$nulls":6},"SECTION 1"]
[]
["Item no.","Description",{"$nulls":4},"Quantity","Rate","Amount"]
[]
[{"$nulls":4},"Brought Forward",{"$nulls":3},{"$f":"I2111","v":0}]
[]
[115,"Monitoring"]
[]
[null,"Monitoring HIV/AIDS awareness of workers, providing "]
[null,"the Principal Agent with access to information "]
[null,"including making available all reports thoroughly "]
[null,"completed and reflecting the correct information forn"]
[null," the duration of the construction period are close out,"]
[null," all I accordance with the HIV/AIDS Specification."]
[]
[null,"F:………………V:…………………T:…………………"]
[]
[116,"Occupational Health and Safety Act"]
[]
[null,"The cotractor shall comply with all the requirements "]
[null,"set out in the construction regulation 2003 issued "]
[null,"under the Occupational Health and Safety Act,1993"]
[null," (Act No.85 of 1993)."]
[]
[null,"It is required of the contractor to thoughly study the "]
[null,"Health and Safety Specification and must be read "]
[null,"together with and is deemed to be incorporated under "]
[null,"the section of the Bills of Quantities."]
[]
[null,"The contractor must note that compliance with the "]
[null,"Occupational Health Safety Act Construction, "]
[null,"regulation and Health Safety Specification is "]
[null,"compulsory, In the event of partial or total  "]
[null,"non- compliance the Principal Agent notwithstanding "]
[null,"the provision of clause A31.0 of section A or any other "]
[null,"Clause to the Contrary, reserves the right to delay "]
[null,"issuing any progress until the contractor provides "]
[null,"satisfactory proof of compliance, The contractor shall "]
[null,"not be entltle to any compensation of whatsoever "]
[null,"nature includi interst due to such delay of payment."]
{"$rows_empty":7}
[{"$nulls":4},"Carried Forward",{"$nulls":3},{"$f":"SUM(I2120:I2156)","v":0}]
[{"$nulls":3},1.42]
[]
[{"$nulls":4},"FREEDOM PARK SECURITY ENTRANCE GATE"]
[]
["Bill No 1","PRELIMINARIES AND GENERAL",{"$nulls":6},"SECTION 1"]
[]
["Item no.","Description",{"$nulls":4},"Quantity","Rate","Amount"]
[]
[{"$nulls":4},"Brought Forward",{"$nulls":3},{"$f":"I2163","v":0}]
[]
[null,"Provision for pricing of the Occupational Health and "]
[null,"Safety Act, construction regulation and Health and "]
[null,"Safety Specification is made  under this clause and it s"]
[null,"is explicity pointed out that all requirement of the  "]
[null,"aforementioned are deemed to be priced hereunder "]
[null,"and no additional claims in this regard shall be "]
[null,"entertained."]
[]
[null,"F:………………V:…………………T:…………………",{"$nulls":4},1,null,{"$f":"G2182*H2182","v":0}]
{"$rows_empty":32}
[{"$nulls":4},"Carried to Final Summary",{"$nulls":3},{"$f":"SUM(I2172:I2212)","v":0}]
[{"$nulls":3},1.43]

{"sheet":"Freedom Park Security Gate BoQ","index":1,"n_rows":2667,"n_cols":10,"rows_kept":2667,"merged":[[0,3,0,8]]}
[{"$nulls":3},"FREEDOM PARK SECURITY GATES"]
["SECTION","BILL","PAGE NO","ITEM NO","DESCRIPTION","UNIT","QUANTITY","RATE","AMOUNT"]
[]
[2,2,49,null,"SECTION 2 : BUILDING WORKS"]
[]
[2,2,49,null,"BILL NO. 2 : EARTHWORKS (PROVISIONAL)"]
[]
[2,2,49,null,"PREAMBLES"]
[]
[2,2,49,null,"The Tenderer is referred to the relevant Clauses in the separate documents General Specification (PW 371-A) July 2013 and Particular Specification (PW 371B) July 2013."]
[]
[2,2,49,null,"SUPPLEMENTARY PREAMBLES"]
[]
[2,2,49,null,"Nature of groundThe tenderer acquaint himself by personal examination of the nature of the ground. Descriptions of excavations  shall be deemed to included all ground conditions classifiable as \"earth\" and where conditions of a more difficult character are indicated these are separately measured. Carting away of excavated materialDescriptions of carting away of excavated material shall be deemed to include loading excavated material onto truck directly from the excavation or alternatively, from stock piles situated on the building siteExcavation No claim for rock excavation will be entertained unless the contractor has timeously notified the Quantity Surveyor thereof prior to backfilling. \" Soft rock\" and \"hard rock\" shall be as defined in \"Earthworks\""]
[]
[2,2,49,null,"Note: Tenderer are advised to study the Model Preambles for Trades before pricing this bill"]
[]
[{"$nulls":4},"SITE CLEARANCE ETC "]
[]
[{"$nulls":4},"Site clearance "]
[]
[{"$nulls":3},1,"Digging up and removing rubbish, debris, vegetation, hedges,","m2",3000,null,{"$f":"SUM(G22*H22)","v":0}]
[{"$nulls":4}," shrubs and trees not exceeding 200mm girth, bush, etc "]
[]
[{"$nulls":3},2,"Stripping average 150mm thick layer of top soil and stockpiling","m2",3000,null,{"$f":"SUM(G25*H25)","v":0}]
[{"$nulls":4}," on site"]
[]
[2,2,50,null,"BLOCK 1 ENTRANCE BUILDINGS (SECURITY GUARD HOUSE AND OFFICES)"]
[]
[2,2,50,null,"EXCAVATIONS"]
[]
[2,2,50,null,"Excavations in earth not exceeding 2m deep"]
[]
[2,2,50,3,"Foundations","m3",230,null,{"$f":"G34*H34","v":0}]
[]
[{"$nulls":4},"Extra over trench and hole excavations for excavation in: "]
[]
[{"$nulls":3},4,"Soft rock","m3",85,null,{"$f":"SUM(G38*H38)","v":0}]
[]
[{"$nulls":3},5,"Hard rock","m3",45,null,{"$f":"SUM(G40*H40)","v":0}]
[]
[2,2,50,null,"Extra over all excavations for carting away"]
[]
[2,2,50,6,"Surplus material from excavations and/or stock piles on site to a dumping site to be located by the contractor","m3",120,null,{"$f":"G44*H44","v":0}]
[]
[{"$nulls":4},"Risk of collapse of excavations "]
[]
[{"$nulls":3},7,"Side of trench and hole excavations from natural, elevated or  reduced ground level not exceeding 1500mm deep","m2",976,null,{"$f":"SUM(G48*H48)","v":0}]
[]
[2,2,50,null,"Keeping excavations free of water"]
[]
[2,2,50,8,"Keeping excavations free of water other than subterranean water (Proven Method and Expenditure)","Item",1,null,{"$f":"G52*H52","v":0}]
[]
[2,2,50,null,"FILLING"]
[{"$nulls":4},"Earth filling obtained from the excavations "]
[]
[2,2,50,null,"Earth filling obtained from excavations and/or prescribed stock piles on site, compacted in 150mm layers to 93% Mod AASHTO density"]
[]
[2,2,50,9,"Backfilling to strip footings, bases etc","m3",106,null,{"$f":"G59*H59","v":0}]
[]
[{"$nulls":4},"Earth filling supplied by the contractor "]
[]
[{"$nulls":4},"Earth filling obtained from disgnated borrow pits and/or prescribed comercial sources, compacted in 150mm layers to 93% Mod AASHTO density"]
[]
[{"$nulls":3},10,"Backfilling to strip footings, bases etc","m3",120,null,{"$f":"SUM(G65*H65)","v":0}]
[]
[2,2,50,null,"Compaction of surfaces"]
[]
[2,2,50,11,"Scarifying ground surface under floors etc for a depth of  150mm, breaking down oversize material, adding suitable  material where necessary and re-compacting to 93% Mod  AASHTO density","m2",110,null,{"$f":"G69*H69","v":0}]
[]
[2,2,50,null,"Prescribed density tests on filling"]
[{"$nulls":4},"Modified AASTHO Density test"]
[2,2,50,12,"Modified AASTHO Density test","No",24,null,{"$f":"G73*H73","v":0}]
[]
[2,2,50,null,"SOIL POISONING"]
[]
[2,2,50,null,"Soil insecticide in accordance with Architects Specifications"]
[]
[2,2,50,13,"Under floors etc including forming and poisoning shallow furrows against foundations walls etc. filling and ramming","m2",126,null,{"$f":"G79*H79","v":0}]
[]
[2,2,51,14,"To bottoms and sides of trenches etc","m2",960,null,{"$f":"G81*H81","v":0}]
{"$rows_empty":8}
[{"$nulls":4},"TOTAL CARRIED TO SUMMARY SECTION",{"$nulls":3},{"$f":"SUM(I22:I81)","v":0}]
[]
[]
[2,3,67,null,"SECTION 2 : BUILDING WORKS "]
[]
[2,3,67,null,"BILL NO. 3 : CONCRETE, FORMWORK AND REINFORCEMENT"]
[]
[2,3,67,null,"PREAMBLES"]
[]
[2,3,67,null,"The Tenderer is referred to the relevant Clauses in the separate documents General Specification (PW 371-A) July 2013 and Particular Specification (PW 371B) July 2013."]
[]
[2,3,67,null,"SUPPLEMENTARY PREAMBLES"]
[]
[2,3,67,null,"Cost of test"]
[]
[2,3,67,null,"The costs of making, storing and testing of concrete test cubes as required under clause 7 \"Tests\" of SABS 1200 G shall include the cost of providing cube moulds necessary for the purpose, for testing costs and for submitting reports on the tests to the principal agent. The testing shall be undertaken by an independent firm or institution nominated by the contractor to the approval of the principal agent. (Test cubes are measured separately)"]
[]
[2,3,67,null,"Formwork"]
[]
[2,3,67,null,"Descriptions of formwork shall be deemed to include use and waste only (except where described as \"left in\" or \"permanent\"), for fitting together in the required forms, wedging, plumbing and fixing to true angles and surfaces as necessary to ensure easy release during stripping and for reconditioning as necessary before re-use"]
[]
[2,3,67,null,"REINFORCED CONCRETE CAST AGAINST EXCAVATED SURFACES"]
[]
[{"$nulls":4},"15Mpa/19mm Concrete"]
[]
[{"$nulls":3},1,"Ramps","m3",5,null,{"$f":"G115*H115","v":0}]
[]
[{"$nulls":3},2,"Apron\t","m3",4,null,{"$f":"G117*H117","v":0}]
[]
[2,3,68,null,"25Mpa/19mm Concrete"]
[]
[2,3,68,3,"Strip footings and Column Bases","m3",110,null,{"$f":"G121*H121","v":0}]
[]
[2,3,68,4,"Surface beds on waterproofing","m3",15,null,{"$f":"G123*H123","v":0}]
[]
[2,3,68,null,"REINFORCED CONCRETE CAST IN/ON FORMWORK"]
[]
[2,3,68,null,"25MPa/19mm concrete"]
[]
[2,3,68,5,"Columns and concrete walls","m3",30,null,{"$f":"G129*H129","v":0}]
[]
[2,3,68,6,"Roof Beam","m3",10,null,{"$f":"G131*H131","v":0}]
[]
[2,3,68,null,"SMOOTH FORMWORK"]
[]
[2,3,68,null,"Smooth formwork to soffits"]
[]
[2,3,68,7,"Slab and Roof Beam","m2",60,null,{"$f":"G137*H137","v":0}]
[]
[2,3,68,null,"TEST CUBES"]
[]
[2,3,68,8,"Allow for all necessary concrete test cubes size 150 x 150 mm cast from batches of concrete required for the entire contract as specified, made, stored, cured and tested in accordance with SABS Methods 861 and 863, including use of approved cube moulds, transporting to an approved testing laboratory for testing, paying all charges and submitting reports to the Representative/Agent. One set consist of 6no. 150x150mm cubes","Set",18,null,{"$f":"G141*H141","v":0}]
[]
[2,3,68,null,"CONCRETE SUNDRIES"]
[]
[2,3,68,null,"Finishing top of surface bed smooth with a power float"]
[]
[2,3,68,9,"Surface beds, slabs, etc","m2",130,null,{"$f":"G147*H147","v":0}]
[]
[2,3,69,null,"Finishing top of surface bed smooth with a wood float"]
[]
[2,3,69,10,"Apron","m2",40,null,{"$f":"G151*H151","v":0}]
[]
[{"$nulls":3},11,"Apron","m2",16,null,{"$f":"G153*H153","v":0}]
[2,3,69]
[{"$nulls":4},"MOVEMENT JOINT"]
[2,3,69]
[{"$nulls":4},"10 mm Wide Jointex with 10 x 10mm tear off strip with Polysulphide on surface beds not exceeding 300mm wide "]
[]
[2,3,69,12,"Not exceeding 300mm high to edges of surface bed","m",24,null,{"$f":"G159*H159","v":0}]
[]
[2,3,69,12,"10mm Construction joint between vertical concrete surfaces, debonded with Lime Wash or Bitumen, groove and sealant saw cut filled with Polysulphide sealant Durakol 25 or Similar approved with Polyethylene bond breaker backing tape","m",20,null,{"$f":"G161*H161","v":0}]
[]
[2,3,69,14,"Surface beds and Apron not exceeding 300mm thick 25 x 3mm Deep saw-cut joints in top of concrete","m",25,null,{"$f":"G163*H163","v":0}]
[]
[]
[]
[]
[]
[{"$nulls":4},"TOTAL CARRIED FORWARD",{"$nulls":3},{"$f":"SUM(I115:I163)","v":0}]
[]
[]
[{"$nulls":4},"TOTAL BROUGHT FORWARD",{"$nulls":3},{"$f":"I169","v":0}]
[]
[{"$nulls":4},"REINFORCEMENT"]
[2,3,69]
[{"$nulls":4},"Mild steel reinforcement for structural concrete work"]
[]
[2,3,69,15," 8mm diameter bars","t",2,null,{"$f":"G178*H178","v":0}]
[]
[{"$nulls":4},"High tensile reinforcement for structural concrete work"]
[]
[2,3,69,17,"8mm Diameter bars","t",2,null,{"$f":"G182*H182","v":0}]
[]
[2,3,69,18,"12mm Diameter bars","t",5,null,{"$f":"G184*H184","v":0}]
[]
[2,3,69,19,"16mm Diameter bars","t",5,null,{"$f":"G186*H186","v":0}]
[]
[{"$nulls":4},"Fabric mesh reinforcement"]
[]
[2,3,69,20,"Type Ref 193 fabric reinforcement in concrete slabs etc.","m2",130,null,{"$f":"G190*H190","v":0}]
[]
[2,3,69,21,"Type Ref 100 fabric reinforcement on ceilings","m2",10,null,{"$f":"G192*H192","v":0}]
{"$rows_empty":64}
[{"$nulls":4},"TOTAL CARRIED TO SUMMARY SECTION",{"$nulls":3},{"$f":"SUM(I172:I192)","v":0}]
[]
[]
[{"$nulls":4},"SECTION 2 : BUILDING WORKS"]
[2,4,90]
[{"$nulls":4},"BILL NO. 4 : MASONRY"]
[2,4,90]
[{"$nulls":4},"PREAMBLES"]
[2,4,90]
[{"$nulls":4},"The Tenderer is referred to the relevant Clauses in the separate documents General Specification (PW 371-A) July 2013 and Particular Specification (PW 371B) July 2013."]
[2,4,90]
[{"$nulls":4},"SUPPLEMENTARY PREAMBLES"]
[2,4,90]
[{"$nulls":4},"Sizes in descriptions"]
[2,4,90]
[{"$nulls":4},"Where sizes in descriptions are given in brick units, \"one brick\" shall represent the length and \"half brick\" the width of a brick"]
[2,4,90]
[{"$nulls":4},"Face bricks"]
[2,4,90]
[{"$nulls":4},"Bricks shall be ordered timorously to obtain uniformity in size and colour"]
[2,4,90]
[{"$nulls":4},"BLOCK 1 ENTRANCE BUILDINGS (SECURITY GUARD HOUSE AND OFFICES)"]
[2,4,90]
[{"$nulls":4},"FOUNDATION BRICKWORK"]
[2,4,90]
[{"$nulls":4},"Brickwork of NFP burnt clay bricks (14MPa nominal compressive strength) in class II mortar (SABS 227)"]
[]
[2,4,90,1,"Half brick walls","m2",0,null,{"$f":"G284*H284","v":0}]
[]
[2,4,90,2,"One brick walls","m2",330,null,{"$f":"G286*H286","v":0}]
[]
[2,4,90,3,"Columns","m3",10,null,{"$f":"G288*H288","v":0}]
[]
[{"$nulls":4},"SUPERSTRUCTURE BRICKWORK"]
[2,4,90]
[{"$nulls":4},"Brickwork of NFP burnt clay bricks (14MPa nominal compressive strength) in class II mortar (SABS 227)"]
[]
[2,4,90,4,"Half Brick Walls","m2",60,null,{"$f":"G294*H294","v":0}]
[]
[2,4,91,5,"One Brick Walls","m2",1020,null,{"$f":"G296*H296","v":0}]
[]
[2,4,91,6,"One and  a half Brick walls ","m2",5,null,{"$f":"G298*H298","v":0}]
[]
[2,4,91,7,"One brick gable Walls","m2",60,null,{"$f":"G300*H300","v":0}]
[]
[2,4,91,8,"Half brick wall in beamfilling","m2",30,null,{"$f":"G302*H302","v":0}]
[]
[2,4,91,9,"Columns","m3",10,null,{"$f":"G304*H304","v":0}]
[]
[2,4,91,null,"BRICKWORK SUNDRIES"]
[]
[2,4,91,null,"2.5mm Brickwork Reinforcement"]
[]
[2,4,91,10,"75mm Wide built in horizontally","m",360,null,{"$f":"G310*H310","v":0}]
[]
[2,4,91,11,"150mm Wide built in horizontally","m",7200,null,{"$f":"G312*H312","v":0}]
[]
[{"$nulls":4},"FACE BRICKWORK"]
[2,4,91]
[{"$nulls":4},"Moroccan red blend travertine or similar approved face bricks pointed with flush horizontal and vertical joints"]
[]
[2,4,91,12,"Extra over brickwork for face brickwork in foundations (provisional)","m2",2,null,{"$f":"G318*H318","v":0}]
[]
[2,4,91,13,"Extra over brickwork for face brickwork","m2",2,null,{"$f":"G320*H320","v":0}]
[]
[2,4,91,14,"Extra over brickwork for brick-on-edge header course lintels 1 course(s) high, pointed on face","m",2,null,{"$f":"G322*H322","v":0}]
[]
[{"$nulls":4},"Brick-on-edge header coarse copings, sills etc of Moroccan red blend travertine or similar approved face bricks, pointed with recessed joints on all exposed faces"]
[]
[2,4,91,15,"220mm Wide sills set sloping and slightly projected","m",10,null,{"$f":"G326*H326","v":0}]
{"$rows_empty":11}
[{"$nulls":4},"TOTAL CARRIED TO SUMMARY SECTION",{"$nulls":3},{"$f":"SUM(I284:I326)","v":0}]
[]
[]
[]
[]
[{"$nulls":4},"SECTION 2 : BUILDING WORKS"]
[2,5,107]
[{"$nulls":4},"BILL NO. 5 : WATERPROOFING"]
[2,5,107]
[{"$nulls":4},"PREAMBLES"]
[2,5,107]
[{"$nulls":4},"The Tenderer is referred to the relevant Clauses in the separate documents General Specification (PW 371-A) July 2013 and Particular Specification (PW 371B) July 2013."]
[2,5,107]
[{"$nulls":4},"SUPPLEMENTARY PREAMBLES"]
[2,5,107]
[{"$nulls":4},"Note: Tenderers are advised to study the Model Preambles for Trades before pricing this bill"]
[2,5,107]
[{"$nulls":4},"DAMPPROOFING OF WALLS AND FLOORS"]
[2,5,107]
[{"$nulls":4},"One layer 375 micron embossed damp proof course (SABS 9520 Type B)"]
[]
[2,5,107,1,"In walls","m2",30,null,{"$f":"G359*H359","v":0}]
[]
[2,5,107,null,"One layer of 250 micron damp proof course (SABS Specification 9520 Type C) waterproof sheeting sealed at laps with \"Gunplas Pressure Sensitive Tape"]
[]
[2,5,107,2,"Under Surface bed","m2",130,null,{"$f":"G363*H363","v":0}]
{"$rows_empty":61}
[{"$nulls":4},"TOTAL CARRIED TO SUMMARY SECTION",{"$nulls":3},{"$f":"SUM(I359:I363)","v":0}]
[]
[]
[{"$nulls":4},"SECTION 2 : BUILDING WORKS"]
[2,6,111]
[{"$nulls":4},"BILL NO. 6 : ROOF COVERING"]
[2,6,111]
[{"$nulls":4},"PREAMBLES"]
[2,6,111]
[{"$nulls":4},"The Tenderer is referred to the relevant Clauses in the separate documents General Specification (PW 371-A) July 2013 and Particular Specification (PW 371B) July 2013."]
[2,6,111]
[{"$nulls":4},"SUPPLEMENTARY PREAMBLES"]
[2,6,111]
[{"$nulls":4},"IBR ROOF COVERING "]
[2,6,111]
[{"$nulls":4},"Guarantees  "]
[2,6,111]
[{"$nulls":4},"The contractor will be required to provide a written guarantee for the roof covering as follows: "]
[2,6,111]
[{"$nulls":4},"CHROMADECK roof covering material - 10 years Workmanship - 10 years"]
[2,6,111]
[{"$nulls":4},"Certificate for Galvanised Roof Sheeting"]
[2,6,111]
[{"$nulls":4},"The contractor is to submit a certificate signed by the merchant, stating that the galvanised roof covering supplied, complies with the required thickness specified "]
[2,6,111]
[{"$nulls":4},"Note: Tenderers are advised to study the Model Preambles for Trades before pricing this bill"]
[2,6,111]
[{"$nulls":4},"IBR PROFILE SHEETING"]
[2,6,112]
[{"$nulls":4},"CHROMADECK-profile 0.58mm thick Z275 spelter galvanised steel roof sheeting @ 30°, fixed to timber purlins"]
[]
[2,6,112,1,"Roof covering with 30 degree pitch and accessories, including ridge capping, gable and gable trims, flashings etc. Concealed fixed to 76x50mm  SA pine Timber purlins @ 1200mm c/c (elsewhere measured)","m2",250,null,{"$f":"G456*H456","v":0}]
[]
[{"$nulls":4},"ROOF AND WALL INSULATION"]
[2,6,112]
[{"$nulls":4},"Sisalation 405 Reflective foil underlay in accordance with SANS 1381-4 overlapped longitudinally by 100mm; on and including galvanised straining wire spaced at 383mm centres fixed parallel over purlins to manufacturer's instruction"]
[]
[2,6,112,2,"Insulation sheeting laid taut over purlins (at approximately 1200mm centres) and fixed concurrently with roof covering with minimum 150mm stapled laps including galvanised straining wires at not exceeding 400mm centres and one-sided tape at edges where required (Layer 1) (LI)","m2",250,null,{"$f":"G462*H462","v":0}]
{"$rows_empty":40}
[{"$nulls":4},"TOTAL CARRIED TO SUMMARY SECTION",{"$nulls":3},{"$f":"SUM(I456:I462)","v":0}]
[]
[]
[{"$nulls":4},"BILL NO. 7 : CARPENTRY AND JOINERY, ETC."]
[2,7,118]
[{"$nulls":4},"PREAMBLES"]
[2,7,118]
[{"$nulls":4},"SUPPLEMENTARY PREAMBLES"]
[2,7,118]
[{"$nulls":4},"Fixing"]
[2,7,118]
[{"$nulls":4},"Items described as \"nailed\" shall be deemed to be fixed with hardened steel nails or pins, or to be shot-pinned, to brickwork or concrete  Items described as \"plugged\" shall be deemed to include screwing to fibre, plastic or metal plugs at not exceeding 500mm centres and where described as \"bolted\", the bolts have been given elsewhere"]
[2,7,118]
[{"$nulls":4},"Joinery"]
[2,7,118]
[{"$nulls":4},"Descriptions of frames shall be deemed to include frames, transoms, rails, etc  Descriptions of hardwood joinery shall be deemed to include sinking and pelleting heads and nuts of bolts"]
[2,7,119]
[{"$nulls":4},"PLATE NAILED TIMBER ROOF TRUSS CONSTRUCTION ETC"]
[2,7,119]
[{"$nulls":4},"Trusses are at maximum 1 200mm centres  Roof coverings are CHROMADECK KIPLOCK roof sheeting metal   on purlins  References given in descriptions refer to the respective types of trusses detailed on the architect's/engineer's drawings numbered ? annexed to these bills of quantities (accompanying these bills of quantities?) for tender purposes  Dimensions in descriptions of trusses are nominal and actual measurements are to be obtained from the architect/engineer and/or taken on site before design or fabrication commences  "]
[2,7,119]
[{"$nulls":4},"PREFABRICATED ROOF TRUSSES, ETC."]
[]
[2,7,119,1,"Roof construction to 30 degree double pitched roof with SA Pine Timber trusses at 1000mm c/c as per roofing specialist design and specification complete with 114 x 38mm SA pine timber wall plates, 50 x 50mm SA pine timber purlins, bracing, platform, laminated beams and support for future solar geysers, etc","m2",260,null,{"$f":"G526*H526","v":0}]
[]
[{"$nulls":4},"Sundries"]
[]
[2,7,119,2,"30x1.6mm Galvanised steel straps cast into roof beams deep into brickwork","No",55,null,{"$f":"G530*H530","v":0}]
[]
[2,7,119,3,"Two Coats creosote on sawn timbers","m2",138,null,{"$f":"G532*H532","v":0}]
[]
[2,7,119,4,"Engineers Certificate","Item",1,null,{"$f":"G534*H534","v":0}]
[]
[{"$nulls":4},"EAVES, VERGES, ETC"]
[2,7,120]
[{"$nulls":4},"Medium density plain fibre-cement fascia's and barge boards"]
[]
[2,7,120,5,"Everite medium density plain ungrooved Nutec fascia boards (Code: 041-202), size 225x12mm, fixed to 76x50mm SAP timber tilter batten and 38x38mm SAP timber support battens between rafters twice screwed with 12x40mm countersunk brass screws at 900mm c/c to support battens with aluminium H-profile fascia joiner between boards and aluminium H-profile fascia corner joiners at board ends.","m",72,null,{"$f":"G540*H540","v":0}]
[]
[{"$nulls":4},"SKIRTINGS"]
[2,7,120]
[{"$nulls":4},"Fine grained compresses woodpulp / cane purpose made"]
[]
[2,7,120,6,"76 x 19 mm Skirtings, nailed","m",260,null,{"$f":"G546*H546","v":0}]
[]
[{"$nulls":4},"DOORS"]
[2,7,120]
[{"$nulls":4},"Masonite backing side hung doors"]
[]
[2,7,120,7,"Hardwood double door 44 x 1613 x 2032mm with masonite backing, hung to steel frame, including Lockblocks and wood screws","No",2,null,{"$f":"G552*H552","v":0}]
[]
[2,7,120,8,"Semi Solid 44 x 813 x 2032mm with masonite backing, hung to steel frame, including 400x400mm Aluminium Louvre Grill, Lockblocks and wood screws","No",10,null,{"$f":"G554*H554","v":0}]
[]
[{"$nulls":4},"CUPBOARDS TO KITCHENS, BEDROOMS, ETC"]
[2,7,120]
[{"$nulls":4},"Built in cupboards and Shelves"]
[]
[2,7,120,9,"As per specialist for the supply and installation of built in cupboards and shelves as indicated on Architectural Drawings","SUM",1,null,{"$f":"G560*H560","v":0}]
{"$rows_empty":11}
[{"$nulls":4},"TOTAL CARRIED TO SUMMARY SECTION",{"$nulls":3},{"$f":"SUM(I526:I560)","v":0}]
[]
[]
[{"$nulls":4},"SECTION 2 : BUILDING WORKS"]
[2,8,137]
[{"$nulls":4},"BILL NO. 8 : CEILINGS, PARTITIONS AND ACCESS FLOORING"]
[2,8,137]
[{"$nulls":4},"PREAMBLES"]
[2,8,137]
[{"$nulls":4},"The Tenderer is referred to the relevant Clauses in the separate documents General Specification (PW 371-A) July 2013 and Particular Specification (PW 371B) July 2013."]
[2,8,137]
[{"$nulls":4},"SUPPLEMENTARY PREAMBLES"]
[2,8,137]
[{"$nulls":4},"Fixing"]
[2,8,137]
[{"$nulls":4},"Items described as \"nailed\" shall be deemed to be fixed with hardened steel nails or pins, or to be shot-pinned, to brickwork or concrete  Items described as \"plugged\" shall be deemed to include screwing to fibre, plastic or metal plugs at not exceeding 500mm centres, and where described as \"bolted\", the bolts have been given elsewhere"]
[2,8,137]
[{"$nulls":4},"Ceilings"]
[2,8,137]
[{"$nulls":4},"Unless otherwise described ceilings shall be deemed to be horizontal"]
[2,8,137]
[{"$nulls":4},"NAILED-UP CEILINGS"]
[2,8,137]
[{"$nulls":4},"SUPPLEMENTARY PREAMBLES"]
[2,8,137]
[{"$nulls":4},"Openings"]
[2,8,137]
[{"$nulls":4},"Prices for openings for light fittings, ventilation grilles, air conditioning diffusers, etc are to include for any necessary additional support, trimming around, etc"]
[2,8,137]
[{"$nulls":4},"6mm Nutec ceilings"]
[]
[2,8,138,1,"Everite Nutec 6mm thick plain ceiling boards, manufactured in accordance with SANS 9001:2000 carrying SANS 803:2005 mark, standard size: 1200x3600mm fixed to 38x38mm SAP timber brandering at 600mm c/c using 32x2,5mm serrated ceiling nails at 150mm c/c, minimum of 12mm from edge of board. All joints to be covered using H-profile steel jointing strips, all in accordance with the manufacturer's recommendations","m2",110,null,{"$f":"G603*H603","v":0}]
[]
[2,8,138,2,"Extra over ceilings 600x600mm trap door opening with 50x38mm SAP braced frame, filled with top hinged metal panel door. (Colour White)","No",1,null,{"$f":"G605*H605","v":0}]
[]
[{"$nulls":4},"Hardboard cornices"]
[]
[2,8,138,3,"83mm Masonite coved hardboard cornices nailed to battens at max. 300mm c/c all round.","m",260,null,{"$f":"G609*H609","v":0}]
[]
[{"$nulls":4},"120mm Flexible fibreglass insulation"]
[]
[2,8,138,4,"120mm Insulation in blanket form lapped not less than 50mm along all edges and laid on top of brandering between roof timbers etc","m2",110,null,{"$f":"G613*H613","v":0}]
{"$rows_empty":35}
[{"$nulls":4},"TOTAL CARRIED FORWARD TO SUMMARY SECTIONS",{"$nulls":3},{"$f":"SUM(I603:I613)","v":0}]
[]
[]
[]
[{"$nulls":4},"SECTION 2 : BUILDING WORKS"]
[2,9,144]
[{"$nulls":4},"BILL NO. 9 : FLOOR COVERINGS, WALL LININGS, ETC"]
[2,9,144]
[{"$nulls":4},"PREAMBLES"]
[2,9,144]
[{"$nulls":4},"The Tenderer is referred to the relevant Clauses in the separate documents General Specification (PW 371-A) July 2013 and Particular Specification (PW 371B) July 2013."]
[2,9,144]
[{"$nulls":4},"SUPPLEMENTARY PREAMBLES"]
[2,9,144]
[{"$nulls":4},"Fixing"]
[2,9,144]
[{"$nulls":4},"Floor coverings, wall linings, etc shall, where applicable, be fixed with adhesive as recommended by the manufacturers of the flooring, linings, etc"]
[2,9,144]
[{"$nulls":4},"FLOOR COVERING"]
[2,9,144]
[{"$nulls":4},"300 x 300 x 2mm semi flexible vinyl tiles"]
[]
[2,9,144,1,"On floors","m2",110,null,{"$f":"G671*H671","v":0}]
[]
[{"$nulls":4},"POLISH, SEALERS, ETC. "]
[2,9,144]
[{"$nulls":4},"Scrub and seal with three coats water based Polymer emulsions: "]
[]
[2,9,144,2,"On Vinyl Flooring","m2",110,null,{"$f":"G677*H677","v":0}]
[]
[{"$nulls":4},"WALL TILING"]
[]
[2,10,148,null,"152x152x6.5mm/5mm Thick Ceramic tiles fixed with adhesive to plaster and flush pointed with tinted grout on floors"]
[]
[{"$nulls":3},3,"On walls","m",86,null,{"$f":"G683*H683","v":0}]
[2,10,148]
[{"$nulls":4},"FLOOR TILING"]
[2,10,148]
[{"$nulls":4},"152x152x6.5mm/5mm Thick Ceramic tiles fixed with adhesive to grano and flush pointed with tinted grout on floors"]
[]
[{"$nulls":3},4,"On floors","m",110,null,{"$f":"G689*H689","v":0}]
[2,10,148]
[{"$nulls":4},"SUNDRIES"]
[2,10,148]
[{"$nulls":4},"Anodised aluminium corner protectors, stair nosing, expansion joint strips, etc"]
[2,10,149]
[{"$nulls":3},5,"10mm Straight edge corner protectors","m",68,null,{"$f":"G695*H695","v":0}]
[]
[{"$nulls":4},"15mm Straight edge weather strip","m",16,null,{"$f":"G697*H697","v":0}]
[2,10,149]
[{"$nulls":4},"T-Piece/Expansion","m",30,null,{"$f":"G699*H699","v":0}]
{"$rows_empty":34}
[{"$nulls":4},"TOTAL CARRIED FORWARD TO SUMMARY SECTIONS",{"$nulls":3},{"$f":"SUM(I671:I699)","v":0}]
[]
[]
[{"$nulls":4},"SECTION 2 : BUILDING WORKS"]
[]
[{"$nulls":4},"BILL NO. 10 : BATHROOM FITTINGS"]
[]
[]
[{"$nulls":4},"BATHROOM FITTINGS"]
[{"$nulls":4},"BY APPROVED MANUFACTURER"]
[{"$nulls":3},1,"Front Flush Closed Couple Toilet Suite without toilet seat (or equal approved) ","No",3,null,{"$f":"G744*H744","v":0}]
[2,11,164]
[{"$nulls":3},2,"Technoplastic thermoplastic universal toilet seat with chrome-plated hinges with patented fixing system that always stays tight. 100% recyclable. ","No",3,null,{"$f":"G746*H746","v":0}]
[2,11,164]
[{"$nulls":3},3,"350mm long; 1/2\"(15mm) x 1/2\" (15mm) Female to Female Flexible Connector. (or equal approved) ","No",9,null,{"$f":"G748*H748","v":0}]
[2,11,164]
[{"$nulls":3},4,"medium wall hung basin. (430 x 390mm) 1 x punched tap hole in centre of basin. Includes wall fixing set. (or equal approved) ","No",3,null,{"$f":"G750*H750","v":0}]
[2,11,165]
[{"$nulls":3},5,"Slotted basin waste with plug, chrome plated. Includes: 62mm diameter flange, 77mm long shank and 32mm BSP male outlet connection with polymer backnut. (or equal approved","No",3,null,{"$f":"G752*H752","v":0}]
[2,11,165]
[{"$nulls":3},6,"basin type bottle trap with 75mm deep seal and telescopic waste connection pipe. 1¼ female inletconnection; 1½ male outlet connection. Brass body, chrome plated. (or equal approved) ","No",3,null,{"$f":"G754*H754","v":0}]
[2,11,165]
[{"$nulls":3},7,"T Self Closing Pillar Tap. Grohe ECOJOY 5.7lt/min flow limiter with 3 adjustable flow times, short, medium and long. Approx 7; 15; 30 second (Pressure dependant) minimum recommended operation pressure 100kPa . (or equal approved) ","No",1,null,{"$f":"G756*H756","v":0}]
[2,11,165]
[]
[{"$nulls":3},8,"Soap dispenser (or equal approved) ","No",3,null,{"$f":"G759*H759","v":0}]
[]
[{"$nulls":3},9,"Paper towel dispenser (or equal approved) ","No",3,null,{"$f":"G761*H761","v":0}]
[]
[{"$nulls":3},10,"Waste bin (or equal approved) ","No",3,null,{"$f":"G763*H763","v":0}]
[]
[{"$nulls":3},11,"Raised paraplegic closed couple water closet with side lever; wall mounted dogleg grab rail and cistern grab rail combo. W=443mm H=855mm D=731mm White vitreous china. (or equal approved) ","No",1,null,{"$f":"G765*H765","v":0}]
[]
[{"$nulls":3},12,"actionpillar tap. With 1/4 turn ceramic disc headpart, flanged backnut and blue indice for cold water application. 1/2\"(15mm)BSP male iron connection end. (or equal approved) ","No",1,null,{"$f":"G767*H767","v":0}]
[]
[{"$nulls":3},13,"Electronic hand dryer (or equal approved) ","No",3,null,{"$f":"G769*H769","v":0}]
[]
[{"$nulls":3},14,"Toilet roll holder (or equal approved) ","No",3,null,{"$f":"G771*H771","v":0}]
[]
[{"$nulls":3},15,"Simple shelf (or equal approved) ","No",3,null,{"$f":"G773*H773","v":0}]
{"$rows_empty":38}
[{"$nulls":4},"TOTAL CARRIED FORWARD TO SUMMARY SECTIONS",{"$nulls":3},{"$f":"SUM(I744:I773)","v":0}]
[]
[]
[]
[]
[{"$nulls":4},"BILL NO. 11 : METALWORKS"]
[2,12,173]
[{"$nulls":4},"PREAMBLES"]
[]
[2,12,173,null,"The Tenderer is referred to the relevant Clauses in the separate documents General Specification (PW 371-A) July 2013 and Particular Specification (PW 371B) July 2013."]
[]
[{"$nulls":4},"SUPPLEMENTARY PREAMBLES"]
[]
[{"$nulls":4},"Fixing"]
[]
[{"$nulls":4},"Items described as \"nailed\" shall be deemed to be fixed with hardened steel nails or pins, or to be shot-pinned, to brickwork or concrete. "]
[2,12,173,1]
[{"$nulls":4},"LOCKS"]
[]
[2,12,174,null,"Manufactured by approved supplier"]
[]
[2,12,174,null,"Euro profile cylinder SASH Lock  - Chrome Plated","No",12,null,{"$f":"G833*H833","v":0}]
[]
[2,12,174,null,"66mm Privacy cylinder - Nickle Plated","No",2,null,{"$f":"G835*H835","v":0}]
[]
[{"$nulls":4},"HANDLES"]
[2,12,174]
[{"$nulls":4},"1Pr. Duba One lever handles on plate","No",12,null,{"$f":"G839*H839","v":0}]
[2,12,174,4]
[{"$nulls":4},"300mm Flush bolt - Satin Chrome","No",1,null,{"$f":"G841*H841","v":0}]
[2,12,174]
[{"$nulls":4},"150mm Flush bolt - Satin Chrome","No",1,null,{"$f":"G843*H843","v":0}]
[]
[2,12,175,null,"HINGES AND BOLTS"]
[]
[{"$nulls":4},"Rebate conversion set","No",2,null,{"$f":"G847*H847","v":0}]
[2,12,175,null,"SUNDRIES"]
[]
[2,12,175,null,"Manufactured by approved supplier"]
[]
[{"$nulls":4},"Floor mounted door stop - Satin Chrome","No",12,null,{"$f":"G852*H852","v":0}]
[]
[{"$nulls":4},"175mm  Floor operated door holder","No",2,null,{"$f":"G854*H854","v":0}]
[]
[{"$nulls":4},"PRESSED STEEL DOOR FRAMES"]
[]
[2,13,186,1,"1.6mm pressed metal door frames incl 1.6mm sheet metal weather hood, double rebate with profiles to conform to SABS 1129-1977, fitted complete with one and a half pair heavy duty 100mm/4.2mm butt hinges, adjustable striking plate, rubber buffers and fixing lugs, suitable for 220mm wall"]
[{"$nulls":5},"No",2,null,{"$f":"G859*H859","v":0}]
[{"$nulls":4},"Frame for door 1613 x 2032mm high"]
[2,13,186]
[{"$nulls":4},"Frame for door 813 x 2032mm high door","No",2,null,{"$f":"G862*H862","v":0}]
[]
[2,13,186,2,"1.6mm pressed metal door frames incl 1.6mm sheet metal weather hood, double rebate with profiles to conform to SABS 1129-1977, fitted complete with one and a half pair heavy duty 100mm/4.2mm butt hinges, adjustable striking plate, rubber buffers and fixing lugs, suitable for 110mm wall"]
[]
[2,13,186,3,"Frame for door 813 x 2032mm high door","No",12,null,{"$f":"G866*H866","v":0}]
[]
[{"$nulls":4},"ALUMINIUM WINDOWS AND DOORS"]
[2,13,186]
[{"$nulls":4},"Matt light grey powder coated windows Glazed with GSA SmartGlass - Neutral Low E Smart Glass- complying with SANS 1263 Part 1, 2 or 3 with name of the manufacturer permanently marked on each sheet visible after glazing, in accordance with NBR N schedule 1 and SANS 10137: 2012 Ironmongery: Supplied by window Manufacturer, all to Architects approval Burglar Proofing to be provided all to Architects approval."]
[{"$nulls":4},"900x1200mm Window (W01)","No",3,null,{"$f":"G871*H871","v":0}]
[]
[{"$nulls":4},"900x900mm Window (W02)","No",6,null,{"$f":"G873*H873","v":0}]
[2,13,186]
[{"$nulls":4},"Matt light grey powder coated windows Glazed with Obscure glass Low E Smart Glass- complying with SANS 1263 Part 1, 2 or 3 with name of the manufacturer permanently marked on each sheet visible after glazing, in accordance with NBR N schedule 1 and SANS 10137: 2012 Ironmongery: Supplied by window Manufacturer, all to Architects approval Burglar Proofing to be provided all to Architects approval."]
[2,13,186,5,"900x900mm Window (W03)","No",6,null,{"$f":"G876*H876","v":0}]
[]
[{"$nulls":4},"600x600mm Window (W07)","No",4,null,{"$f":"G878*H878","v":0}]
[]
[{"$nulls":4},"900x600mm Window (W08)","No",4,null,{"$f":"G880*H880","v":0}]
[2,14,192]
[]
[]
[]
[]
[]
[{"$nulls":4},"TOTAL CARRIED FORWARD",{"$nulls":3},{"$f":"SUM(I833:I880)","v":0}]
[]
[]
[{"$nulls":4},"TOTAL BROUGHT FORWARD",{"$nulls":3},{"$f":"I887","v":0}]
[]
[{"$nulls":4},"STEEL GATES, SCREENS, ETC"]
[]
[2,14,192,1,"Welded screens and gates"]
[]
[{"$nulls":4},"Gate 1 - As per gate schedule","No",1,null,{"$f":"G896*H896","v":0}]
[]
[{"$nulls":4},"Gate 2 - As per gate schedule\t","No",1,null,{"$f":"G898*H898","v":0}]
[]
[]
[]
[]
[2,14,193]
[]
[]
[2,14,193]
{"$rows_empty":68}
[{"$nulls":4},"TOTAL CARRIED FORWARD TO SUMMARY SECTIONS",{"$nulls":3},{"$f":"SUM(I890:I898)","v":0}]
[2,14,193]
[{"$nulls":4},"BILL NO. 12 : PLASTERING"]
[]
[{"$nulls":4},"PREAMBLES"]
[]
[{"$nulls":4},"The Tenderer is referred to the relevant Clauses in the separate documents General Specification (PW 371-A) July 2013 and Particular Specification (PW 371B) July 2013."]
[]
[{"$nulls":4},"SCREEDS"]
[]
[{"$nulls":4},"Screeds wood floated, on concrete"]
[]
[2,15,196,null,"25mm Thick screed on surface bed, incl chipping, cleaning and brushing with Cement/Sand slurry before screeding","m2",110,null,{"$f":"G987*H987","v":0}]
[]
[2,15,196,null,"INTERNAL PLASTER"]
[]
[2,15,196,null,"Cement plaster steel trowelled on brickwork"]
[]
[2,15,196,null,"On walls","m2",640,null,{"$f":"G993*H993","v":0}]
[]
[2,15,196,null,"On narrow widths","m2",60,null,{"$f":"G995*H995","v":0}]
[]
[2,15,196,null,"EXTERNAL PLASTER"]
[]
[2,15,196,null,"Cement plaster steel trowelled on brickwork"]
[]
[2,15,196,null,"On walls","m2",600,null,{"$f":"G1001*H1001","v":0}]
[]
[{"$nulls":4},"Cement plaster steel trowelled on concrete"]
[]
[{"$nulls":4},"Plaster to roof beam","m2",30,null,{"$f":"G1005*H1005","v":0}]
{"$rows_empty":54}
[{"$nulls":4},"TOTAL CARRIED FORWARD TO SUMMARY SECTIONS",{"$nulls":3},{"$f":"SUM(I987:I1005)","v":0}]
[]
[]
[{"$nulls":4},"SECTION 2 : BUILDING WORKS"]
[]
[{"$nulls":4},"BILL NO. 13 : GLAZING"]
[]
[{"$nulls":4},"PREAMBLES"]
[]
[{"$nulls":4},"The Tenderer is referred to the relevant Clauses in the separate documents General Specification (PW 371-A) July 2013 and Particular Specification (PW 371B) July 2013."]
[]
[{"$nulls":4},"SUPPLEMENTARY PREAMBLES"]
[]
[{"$nulls":4},"Float glass"]
[]
[{"$nulls":4},"The term \"float glass\" is used for monolithic glass","No",3,null,{"$f":"G1075*H1075","v":0}]
[]
[{"$nulls":4},"MIRRORS"]
[]
[{"$nulls":4},"Silvered floated glass copper backed mirrors with polished edges, fixed to wall with double sided adhesive tape and silicone"]
[]
[{"$nulls":4},"Mirror 450 x 600mm high"]
[]
[{"$nulls":4},"GLAZING "]
[{"$nulls":4},"GLAZING  TO  STEEL  WITH  PUTTY: "]
[]
[{"$nulls":4},"4mm Clear float glass: "]
[]
[{"$nulls":4},"Panes not exceeding 0,1 m2.","m2",20,null,{"$f":"H1088*G1088","v":0}]
[]
[{"$nulls":4},"4mm Obscure glass: "]
[]
[{"$nulls":4},"Panes not exceeding 0,1 m2.","m2",10,null,{"$f":"H1092*G1092","v":0}]
[]
[]
[]
[]
[]
[2,16,198]
[]
[2,16,198]
[]
[2,16,198]
[]
[2,16,198]
[]
[2,16,198]
[]
[2,16,198]
[]
[2,16,198]
[]
[2,16,198]
[]
[2,16,198]
[]
[2,16,198]
[]
[]
[2,16,198]
[]
[]
[2,16,198]
[]
[]
[2,16,198]
[]
[]
[2,16,199]
[]
[]
[2,16,199]
[]
[]
[2,16,199]
[]
[]
[2,16,199]
[]
[2,16,199]
[]
[]
[2,16,199]
[]
[]
[2,16,199,6,"TOTAL CARRIED FORWARD TO SUMMARY SECTIONS",{"$nulls":3},{"$f":"SUM(I1075:I1092)","v":0}]
[]
[2,16,199,7]
[{"$nulls":4},"SECTION 2 : BUILDING WORKS"]
[]
[2,16,199,null,"BILL NO. 14 : PAINTWORK"]
[]
[{"$nulls":4},"PREAMBLES"]
[2,16,199,8]
[{"$nulls":4},"The Tenderer is referred to the relevant Clauses in the separate documents General Specification (PW 371-A) July 2013 and Particular Specification (PW 371B) July 2013."]
[]
[{"$nulls":4},"SUPPLEMENTARY PREAMBLES"]
[2,16,199,9]
[{"$nulls":4},"PAINT SPECIFICATIONS"]
[]
[{"$nulls":4},"All painting shall be done in accordance with Architect specifications unless otherwise described"]
[]
[{"$nulls":4},"COLOURS"]
[]
[{"$nulls":4},"Unless otherwise described all paintwork shall be deemed to have colour value in excess of 7 on the Munsell system in accordance with SANS 1091"]
[]
[{"$nulls":4},"ON INTERNAL FLOATED PLASTER SURFACES"]
[]
[{"$nulls":4},"One coat alkali resistant primer and two coats superior quality acrylic emulsion paint for internal and external use "]
[]
[{"$nulls":4},"Walls","m2",680,null,{"$f":"G1170*H1170","v":0}]
[]
[{"$nulls":4},"ON EXTERNAL FLOATED PLASTER SURFACES"]
[]
[{"$nulls":4},"One coat alkali resistant primer and two coats superior quality acrylic emulsion paint for internal and external use"]
[]
[{"$nulls":4},"Walls and beams","m2",600,null,{"$f":"G1176*H1176","v":0}]
[]
[{"$nulls":4},"ON SMOOTH CONCRETE SURFACES"]
[]
[{"$nulls":4},"One coat alkali resistant primer and two coats superior quality acrylic emulsion paint for internal and external use"]
[]
[{"$nulls":4},"Slab\t","m2",30,null,{"$f":"G1182*H1182","v":0}]
[]
[{"$nulls":4},"ON FIBRE-CEMENT SURFACES"]
[]
[{"$nulls":4},"One coat alkali resistant primer and two coats superior quality acrylic emulsion paint for interior and exterior use"]
[]
[{"$nulls":4},"Fascia and barge boards not exceeding 300mm girth, including priming metal jointing strips","m2",51,null,{"$f":"G1188*H1188","v":0}]
[]
[{"$nulls":4},"Ceilings and cornices","m2",160,null,{"$f":"G1190*H1190","v":0}]
[]
[{"$nulls":4},"ON METAL SURFACES"]
[]
[{"$nulls":4},"One coat metal primer and two coats Plascon Velvegro, on steel"]
[]
[{"$nulls":4},"Door frames","m2",17,null,{"$f":"G1196*H1196","v":0}]
[]
[{"$nulls":4},"Gates","m2",15,null,{"$f":"G1198*H1198","v":0}]
[]
[{"$nulls":4},"ON WOOD SURFACES"]
[]
[{"$nulls":4},"One coat primer and two coats premium quality polyurethane enamel paint"]
[]
[{"$nulls":4},"External door","m2",10,null,{"$f":"G1204*H1204","v":0}]
[]
[{"$nulls":4},"Three coats superior quality clear matt varnish"]
[]
[{"$nulls":4},"Internal Door","m2",20,null,{"$f":"G1208*H1208","v":0}]
{"$rows_empty":17}
[{"$nulls":4},"TOTAL CARRIED FORWARD TO SUMMARY SECTIONS",{"$nulls":3},{"$f":"SUM(I1170:I1208)","v":0}]
[]
[]
[]
[{"$nulls":4},"SECTION 2 : BUILDING WORKS"]
[]
[{"$nulls":4},"BILL NO.15 STRUCTURAL STEEL WORKS"]
[]
[{"$nulls":4},"SUNDRY STEELWORK "]
[]
[{"$nulls":4},"M20 Grade 8,8 high tensile Holding down bolts to Engineer's detail in stub columns welded to column and base reinforcements","No",60,null,{"$f":"SUM(G1236*H1236)","v":0}]
[]
[{"$nulls":4},"320mm x 320mm x 6mm thick  base plates welded to SHS 305X 305 X 12mm thick,columns to Eneer's detail","No",106,null,{"$f":"SUM(G1238*H1238)","v":0}]
[]
[{"$nulls":4},"UC 305 X 305 UNIVESAL COLUMNS","tonnes",12.5,null,{"$f":"SUM(G1240*H1240)","v":0}]
[]
[{"$nulls":4},"UB 254 X 102  UNIVESAL BEAMS","tonnes",3.5,null,{"$f":"SUM(G1242*H1242)","v":0}]
[]
[{"$nulls":4},"25mm Non shrink grout under stub colymn base plates ","m3",0.3,null,{"$f":"SUM(G1244*H1244)","v":0}]
{"$rows_empty":20}
[3,2,221]
[]
[3,2,221]
[]
[3,2,221]
[]
[3,2,221]
[]
[3,2,221]
[]
[3,2,221]
[]
[]
[3,2,221]
[]
[]
[3,2,221]
[]
[]
[3,2,221]
[]
[3,2,221]
[]
[3,2,221]
[]
[3,2,221]
{"$rows_empty":15}
[3,2,221]
[]
[3,2,221]
[]
[]
[{"$nulls":4},"TOTAL CARRIED TO SUMMARRY SECTIONS",{"$nulls":3},{"$f":"SUM(I1236:I1244)","v":0}]
[]
[]
[]
[{"$nulls":4},"SECTION 3 : EXTERNAL WORKS"]
[]
[{"$nulls":4},"BILL NO. 1 : EXTERNAL WORKS"]
[]
[{"$nulls":4},"PREAMBLES"]
[]
[{"$nulls":4},"The Tenderer is referred to the relevant Clauses in the separate documents General Specification (PW 371-A) July 2013 and Particular Specification (PW 371B) July 2013."]
[]
[{"$nulls":4},"LANDSCAPING"]
[]
[{"$nulls":4},"Grassing"]
[]
[{"$nulls":4},"Grassing of rolls approximately 50mm thick including fertilising grassed areas after completion of planting"]
[]
[{"$nulls":4},"Kikuyu grass over site","m2",480,null,{"$f":"G1329*H1329","v":0}]
[]
[{"$nulls":4},"Trees"]
[]
[{"$nulls":4},"Remove and grub large trees and stumps"]
[]
[{"$nulls":4},"Girth over 600mm up to 1000mm","No",4,null,{"$f":"G1335*H1335","v":0}]
[]
[{"$nulls":4},"Girth over 1000mm up to 2000mm","No",4,null,{"$f":"G1337*H1337","v":0}]
[]
[{"$nulls":4},"Girth over 2000mm up to 3000mm","No",2,null,{"$f":"G1339*H1339","v":0}]
[]
[{"$nulls":4},"Feature trees 50lt, Type 1 as per Architects Specifications","No",10,null,{"$f":"G1341*H1341","v":0}]
[]
[{"$nulls":4},"FENCING"]
[]
[{"$nulls":4}," complete with steel 75mm x 75mm x1,6mm steel post"]
[]
[{"$nulls":4},"Excavations in earth not exceeding 2m deep for steel post"]
[]
[{"$nulls":4},"400mm x 400mm x 500 deep foundations for steel post","m3",10,null,{"$f":"G1349*H1349","v":0}]
[3,6,236]
[{"$nulls":4},"R+E1348:I1353EINFORCED CONCRETE CAST AGAINST EXCAVATED SURFACES"]
[3,6,236]
[{"$nulls":4},"15Mpa/19mm Concrete"]
[3,6,236]
[{"$nulls":4},"Column posts concrete","m3",10,null,{"$f":"G1355*H1355","v":0}]
[3,6,236]
[{"$nulls":4},"Erect new  fence as per the specification ( Betafence )","m",160,null,{"$f":"G1357*H1357","v":0}]
[3,6,236]
[{"$nulls":4},"Gate 01 - As per gate schedule","No",2,null,{"$f":"G1359*H1359","v":0}]
[]
[3,6,236]
[]
[]
[]
[3,6,236]
[]
[3,6,236]
[]
[]
[]
[3,6,236]
[]
[]
[]
[3,6,236]
[]
[3,6,236]
[]
[]
[3,6,236]
[]
[3,6,237]
[]
[]
[3,6,237]
[]
[3,6,237]
[]
[]
[]
[3,6,237]
[]
[]
[]
[3,6,237]
[{"$nulls":4},"TOTAL CARRIED FORWARD",{"$nulls":3},{"$f":"SUM(I1329:I1359)","v":0}]
[3,6,237]
[{"$nulls":4},"TOTAL BROUGHT FORWARD",{"$nulls":3},{"$f":"I1396","v":0}]
[]
[3,6,237,null,"SECTION 3 : EXTERNAL WORKS"]
[]
[3,6,237,null,"BILL NO. 2 : CIVIL ENGINEERING (ROADS AND STORMWATER)"]
[]
[3,6,237,null,"PREAMBLES"]
[]
[{"$nulls":4},"The Tenderer is referred to the relevant Clauses in the separate documents General Specification (PW 371-A) July 2013 and Particular Specification (PW 371B) July 2013."]
[3,6,237]
[{"$nulls":4},"SITE CLEARANCE"]
[3,6,237]
[{"$nulls":4},"OPEN CHANNEL"]
[3,6,237]
[{"$nulls":4},"Clear and grub","m",50,null,{"$f":"G1412*H1412","v":0}]
[]
[3,6,238,null,"Remove and grub large trees and tree stumps of girth:"]
[]
[{"$nulls":4},"a) over 1.0m up to 2.0m (provisional)","No",1,null,{"$f":"G1416*H1416","v":0}]
[3,6,238]
[{"$nulls":4},"b) over 2.0m up to 3.0m (provisional)","No",1,null,{"$f":"G1418*H1418","v":0}]
[]
[{"$nulls":4},"PARKING"]
[3,6,238]
[{"$nulls":4},"Clear and grub","m2",200,null,{"$f":"G1422*H1422","v":0}]
[]
[{"$nulls":4},"Remove and grub large trees and tree stumps of girth: "]
[]
[{"$nulls":4},"a) over 1.0m up to 2.0m (provisional)","No",1,null,{"$f":"G1426*H1426","v":0}]
[]
[{"$nulls":4},"b) over 2.0m up to 3.0m (provisional)","No",1,null,{"$f":"G1428*H1428","v":0}]
[]
[{"$nulls":4},"BULK EARTHWORKS"]
[]
[{"$nulls":4},"EXCAVATION"]
[]
[{"$nulls":4},"Excavate in all materials for trenches, backfill,compact and dispose of surplus or unsuitablematerial for water pipes to a depth not exceeding 1.5 m "]
[]
[{"$nulls":4},"Clear and strip site","HA",0.1,null,{"$f":"G1436*H1436","v":0}]
[3,6,238]
[{"$nulls":4},"Remove topsoil to nominal depth 150 mm","HA",0.1,null,{"$f":"G1438*H1438","v":0}]
[3,6,238]
[{"$nulls":4},"Selected (G5) layers constructed to 150 mm thickness"]
[]
[3,6,238,null,"(a) Compact to 95% of mod. AASHTO maximum density","m3",60,null,{"$f":"G1442*H1442","v":0}]
[]
[{"$nulls":4},"Cut to spoil"]
[]
[3,6,238,null,"(a) Soft excavation","m3",60,null,{"$f":"G1446*H1446","v":0}]
[]
[{"$nulls":4},"Overhaul","m3.km",60,null,{"$f":"G1448*H1448","v":0}]
[]
[3,6,238,null,"ROADS & STORMWATER"]
[]
[{"$nulls":4},"EARTHWORKS (ROADS, SUBGRADE)"]
[]
[{"$nulls":4},"Treatment of roadbed"]
[]
[{"$nulls":4},"Roadbed preparation and compaction of material to"]
[]
[{"$nulls":4},"(i) minimum of 90% mod. AASHTO maximum density","m3",25,null,{"$f":"G1458*H1458","v":0}]
[]
[{"$nulls":4},"Selected layer (G7) compacted to 95% of mod. AASHTO maximum density","m3",25,null,{"$f":"G1460*H1460","v":0}]
[]
[3,6,238,null,"Overhaul","m3.km",250,null,{"$f":"G1462*H1462","v":0}]
[]
[3,6,238,null,"STORMWATER DRAINAGE"]
[]
[3,6,238,null,"Alternative to Subclause 8.2.8"]
[]
[{"$nulls":4},"(a) 230mm Thick","m2",2,null,{"$f":"G1468*H1468","v":0}]
[3,6,238]
[{"$nulls":4},"Accessories"]
[3,6,239]
[{"$nulls":4},"(b) Grid inlets including frames (600x600 light duty square dish or similar)","No",1,null,{"$f":"G1472*H1472","v":0}]
[]
[3,6,239]
[]
[3,6,239]
[]
[3,6,239]
[{"$nulls":4},"TOTAL CARRIED FORWARD",{"$nulls":3},{"$f":"SUM(I1398:I1472)","v":0}]
[3,6,239]
[]
[{"$nulls":4},"TOTAL BROUGHT FORWARD",{"$nulls":3},{"$f":"I1479","v":0}]
[3,6,239]
[{"$nulls":4},"SUB-BASE"]
[3,6,239]
[{"$nulls":4},"Construct the subbase course/shoulders/gravel wearing course with material from commercial sources"]
[3,6,239]
[{"$nulls":4},"(a) Gravel sub-base (unstabilised gravel) compacted to"]
[]
[3,6,239,null,"(i) minimum of 98% mod. AASHTO maximum density","m3",50,null,{"$f":"G1490*H1490","v":0}]
[]
[3,6,239,null,"Process (C4) subbase material by the following processes, as relevant, and use in the subbase"]
[]
[{"$nulls":4},"Stabilisation","m3",50,null,{"$f":"G1494*H1494","v":0}]
[]
[{"$nulls":4},"Stabilising agent"]
[]
[{"$nulls":4},"Portland cement","t",8,null,{"$f":"G1498*H1498","v":0}]
[]
[{"$nulls":4},"Prescribed density tests on filling "]
[]
[{"$nulls":4},"Tests to determine the degree of compaction, etc of ground or fill","No",5,null,{"$f":"H1502*G1502","v":0}]
[]
[{"$nulls":4},"Soil poison and or weed killers","m2",200,null,{"$f":"H1504*G1504","v":0}]
[]
[{"$nulls":4},"25mm river sand as bedding ubder block paving","m3",10,null,{"$f":"G1506*H1506","v":0}]
[]
[{"$nulls":4},"SEGMENTED PAVING"]
[]
[{"$nulls":4},"Provision of Edge Restraints","Item",1,null,{"v":6500,"d":"R6,500.00"}]
[]
[{"$nulls":4},"(b) 80 mm","m2",200,null,{"$f":"G1512*H1512","v":0}]
[]
[{"$nulls":4},"Cutting Units to Fit Edge Restaints","m",98,null,{"$f":"G1514*H1514","v":0}]
[]
[{"$nulls":4},"KERBING AND CHANNELLING"]
[]
[{"$nulls":4},"Concrete Kerbing"]
[]
[{"$nulls":4},"(a) Fig. 4"]
[]
[{"$nulls":4},"(i) 330 mm","m",5,null,{"$f":"G1522*H1522","v":0}]
[5,1,321]
[{"$nulls":4},"(ii) 1 000 mm ","m",20,null,{"$f":"G1524*H1524","v":0}]
[5,1,321]
[]
[5,1,321]
[]
[5,1,321]
[]
[5,1,321]
[{"$nulls":4},"Trimming of Excavations for Concrete-Lined Open Drains in"]
[5,1,321]
[{"$nulls":4},"(a) Soft Material","m2",10,null,{"$f":"G1534*H1534","v":0}]
[5,1,321]
[{"$nulls":4},"Sealed Joints in Concrete Lining of Open Drains","m",20,null,{"$f":"G1536*H1536","v":0}]
[]
[5,1,321,1,"Sprayed Bitumen Emulsion Primer for Concrete-Lined Open Drains","m2",20,null,{"$f":"G1538*H1538","v":0}]
[]
[5,1,321,2,"ANCILLARY ROADWORKS"]
[]
[5,1,321,3,"Sign Faces with Painted or Galvanized (as Stated) Background, with Painted Symbols, Characters, Legend, and Borders, and with Signboards Constructed from"]
[]
[{"$nulls":4},"(a) Aluminium sheet (2.0 mm thick), of area"]
[]
[5,1,322,4,"(i) Up to 2 m2","m2",6,null,{"$f":"G1546*H1546","v":0}]
[]
[5,1,322,5,"Sign Supports"]
[]
[5,1,322,6,"(a) Steel tubing (110 mm dia, 2.5 mm wall thickness)","t",0.1,null,{"$f":"G1550*H1550","v":0}]
[]
[{"$nulls":4},"Excavation and Backfilling and Concreting for Sign Supports"]
[]
[5,1,322,7,"(a) Backfill","m3",3,null,{"$f":"G1554*H1554","v":0}]
[]
[5,1,322,8,"(b) Class 20/19 concrete","m3",3,null,{"$f":"G1556*H1556","v":0}]
[]
[5,1,322,9,"Setting out and premarking"]
[]
[{"$nulls":4},"Lines (excluding traffic island markings, characters,","km",0.3,null,{"$f":"G1560*H1560","v":0}]
[]
[]
[]
[{"$nulls":4},"TOTAL CARRIED TO SUMMARY SECTIONS",{"$nulls":3},{"$f":"SUM(I1482:I1560)","v":{"v":6500,"d":"R6,500.00"}}]
[]
[]
[]
[{"$nulls":4},"SECTION 4 : PROVISIONAL SUMS"]
[]
[{"$nulls":4},"BILL NO. 1 : PROVISIONAL SUMS"]
[]
[{"$nulls":4},"PREAMBLES"]
[]
[{"$nulls":4},"SUPPLEMENTARY PREAMBLES"]
[]
[{"$nulls":4},"General"]
[]
[{"$nulls":4},"All prime cost amount and provisional sum allowances are net and will be adjusted in accordance with the relevant building agreement and deducted in whole or in part if not required without any compensation for loss of profit on the said allowances.  Prime cost amounts shall include for delivery to site of all articles concerned"]
[]
[{"$nulls":4},"Profit and general attendance upon selected subcontract works"]
[]
[{"$nulls":4},"The item \"Allow for profit and general attendance\" which follows each selected subcontract works, shall be deemed to allow for the contractor's profit if required and to cover all the contractor's costs incurred in providing free of charge to the selected subcontract works the duties of the contractor as described  in clause 12.2 of the JBCC N/S Subcontract Agreement inclusive of the amendments thereto contained in the \"Preliminaries\""]
[]
[{"$nulls":4},"PROVISIONAL SUMS"]
[]
[{"$nulls":4},"Allowance for Turnstiles"]
[]
[{"$nulls":4},"Provide an amount of R78 000.00 (Seventy Eight Thousand Rand) for turnstiles","Item",1,null,{"$f":"G1588*H1588","v":0}]
[]
[{"$nulls":4},"Allow for profit","%",null,null,{"$f":"H1590*0.1","v":0}]
[]
[{"$nulls":4},"Allow for general attendance","%",null,null,{"$f":"H1592*0.1","v":0}]
[]
[{"$nulls":4},"Allowance for Exposing Existing Services"]
[]
[{"$nulls":4},"Provide an amount of R20 000.00 (Twenty Thousand Rand) for exposing existing services","Item",1,null,{"v":20000,"d":"R20,000.00"}]
[]
[{"$nulls":4},"A contingency amount has been allowed for expenditure as directed by the Electrical Engineer.","Sum",1,null,{"v":25000,"d":"R 25,000.00"}]
[]
[{"$nulls":4},"Allowance for Lighning Protection Installation","Item",1,null,{"v":30000,"d":"R 30,000.00"}]
[]
[{"$nulls":4},"Allowance for Profit________%",{"$nulls":3},{"$f":"I1600*0.1","v":{"v":3000,"d":"R 3,000.00"}}]
[]
[{"$nulls":4},"Allowance for Attendance__________%",{"$nulls":3},{"$f":"I1600*0.1","v":{"v":3000,"d":"R 3,000.00"}}]
[]
[{"$nulls":4},"Allowance for Boom Gate and Spikes Installation","Item",1,null,{"v":590000,"d":"R 590,000.00"}]
[]
[{"$nulls":4},"Allowance for Profit________%",{"$nulls":3},{"$f":"I1606*0.1","v":{"v":59000,"d":"R 59,000.00"}}]
[]
[{"$nulls":4},"Allowance for Attendance__________%",{"$nulls":3},{"$f":"I1606*0.1","v":{"v":59000,"d":"R 59,000.00"}}]
[]
[{"$nulls":4},"Allowance for Vehicle Recognition Installation","Item",1,null,{"v":170000,"d":"R 170,000.00"}]
[]
[{"$nulls":4},"Allowance for Profit________%",{"$nulls":3},{"$f":"I1612*0.1","v":{"v":17000,"d":"R 17,000.00"}}]
[]
[{"$nulls":4},"Allowance for Attendance__________%",{"$nulls":3},{"$f":"I1612*0.1","v":{"v":17000,"d":"R 17,000.00"}}]
[]
[{"$nulls":4},"Allowance for CCTV Installation","Item",1,null,{"v":280000,"d":"R 280,000.00"}]
[]
[{"$nulls":4},"Allowance for Profit________%",{"$nulls":3},{"$f":"I1618*0.1","v":{"v":28000,"d":"R 28,000.00"}}]
[]
[{"$nulls":4},"Allowance for Attendance__________%",{"$nulls":3},{"$f":"I1618*0.1","v":{"v":28000,"d":"R 28,000.00"}}]
[]
[{"$nulls":4},"Allowance for People Counting Installation","Item",1,null,{"v":70000,"d":"R 70,000.00"}]
[]
[{"$nulls":4},"Allowance for Profit________%",{"$nulls":3},{"$f":"I1624*0.1","v":{"v":7000,"d":"R 7,000.00"}}]
[]
[{"$nulls":4},"Allowance for Attendance__________%",{"$nulls":3},{"$f":"I1624*0.1","v":{"v":7000,"d":"R 7,000.00"}},{"$f":"I2714*0.14","v":0}]
[]
[5,1,null,null,"Allowance for Biometric Installation","Item",1,null,{"v":90000,"d":"R 90,000.00"}]
[6,1,323]
[{"$nulls":4},"Allowance for Profit________%",{"$nulls":3},{"$f":"I1630*0.1","v":{"v":9000,"d":"R 9,000.00"}}]
[6,1,323]
[{"$nulls":4},"Allowance for Attendance__________%",{"$nulls":3},{"$f":"I1630*0.1","v":{"v":9000,"d":"R 9,000.00"}}]
[6,1,323]
[{"$nulls":4},"Allowance for Connection to Security Gates","Item",1,null,{"v":200000,"d":"R 200,000.00"}]
[6,1,323]
[{"$nulls":4},"Allowance for Profit________%",{"$nulls":3},{"$f":"I1636*0.1","v":{"v":20000,"d":"R 20,000.00"}}]
[]
[{"$nulls":4},"Allowance for Attendance__________%",{"$nulls":3},{"$f":"I1636*0.1","v":{"v":20000,"d":"R 20,000.00"}}]
[6,1,323]
[]
[6,1,323]
[{"$nulls":4},"TOTAL CARRIED TO SUMMARY SECTION",{"$nulls":3},{"$f":"SUM(I1588:I1640)","v":{"v":1761000,"d":"R1,761,000.00"}}]
[]
[{"$nulls":4},"SECTION 5 : ENGINEERING SERVICES"]
[]
[{"$nulls":4},"BILL NO. 1 : MECHANICANICAL INSTALLATION - INTERNAL WET SERVICES"]
[]
[{"$nulls":4},"PREAMBLES"]
[{"$nulls":4},"Refer to the attached Specifications for the HVAC Installation. The Tenderer must at all times read the Bills of Quantities in conjuction with the specification and drawings prior to pricing this section."]
[]
[{"$nulls":4},"Verification of Drawings"]
[{"$nulls":4},"Mark up on received engineer layouts for \"as built\" information."]
[]
[{"$nulls":4},"Builder Work Drawings","Item",1,null,{"$f":"G1656*H1656","v":0}]
[]
[{"$nulls":4},"Shop Drawings ","Item",1,null,{"$f":"G1658*H1658","v":0}]
[]
[{"$nulls":4},"O&M Manuals including RECORD Drawings"]
[]
[{"$nulls":4},"Provision for the drawings showing all Equipment, pipe routes, positions, type, component list etc. This cost is for the final STANDARDS compliance installation RECORD Drawings.","No",3,null,{"$f":"G1662*H1662","v":0}]
[]
[{"$nulls":4},"Certificate of Compliance (Where applicable)"]
[]
[{"$nulls":4},"Provision for the Certificate of Compliance to be issued on completion of the project."]
[{"$nulls":4},"Electrical CoC","No",1,null,{"$f":"G1667*H1667","v":0}]
[{"$nulls":4},"Equipment CoC","No",1]
[]
[{"$nulls":4},"1st Years Maintenance","months",12,null,{"$f":"G1670*H1670","v":0}]
{"$rows_empty":58}
[{"$nulls":4},"TOTAL CARRIED FORWARD",{"$nulls":3},{"$f":"SUM(I1656:I1672)","v":0}]
[]
[]
[{"$nulls":4},"TOTAL BROUGHT FORWARD",{"$nulls":3},{"$f":"I1729","v":0}]
[]
[{"$nulls":4},"HEAT PUMP SET"]
[{"$nulls":4},"2,0 Kw constant air to water Hot Water Heat pump, with thermometers, controls, vacuum breaker, binder fittings etc."]
[{"$nulls":4},"Constant temperature range 60-65°C.Ex."]
[{"$nulls":4},"Solnet or similar approved"]
[]
[{"$nulls":4},"Supply & Delivery of Unit","No",1,null,{"$f":"G1739*H1739","v":0}]
[{"$nulls":4},"Installation","No",1,null,{"$f":"G1740*H1740","v":0}]
[{"$nulls":4},"Commissioning of Unit","No",1,null,{"$f":"G1741*H1741","v":0}]
[]
[{"$nulls":4},"HOT WATER STORAGE "]
[{"$nulls":4},"Supply & install 150L geyser complete with all safeties & controls, insulation, supports etc, 3kw, 3ph, 400V heater element."]
[{"$nulls":4},"Kwikot or similar approved"]
[]
[{"$nulls":4},"Supply & Delivery of Unit","No",1,null,{"$f":"G1747*H1747","v":0}]
[{"$nulls":4},"Installation","No",1,null,{"$f":"G1748*H1748","v":0}]
[{"$nulls":4},"Commissioning of Unit","No",1,null,0]
[]
[{"$nulls":4},"All pumps shall have run dry protection by means of a flow protection by means of a flow switch. Recirculation pumps shall be controlled by means of a programmable thermostatic electronic controller.  Temperature to be set at 42DegC."]
[]
[{"$nulls":4},"Admin Building "]
[{"$nulls":4},"COPPER PIPING"]
[{"$nulls":4},"Class O hard drawn copper tubes for domestic plumbing services joined together with soldered capilary fittins as (SABS466/1975)"]
[{"$nulls":4},"28mm ","m",6,null,{"$f":"G1756*H1756","v":0}]
[{"$nulls":4},"22mm","m",4,null,{"$f":"G1757*H1757","v":0}]
[{"$nulls":4},"15mm","m",12,null,0]
[]
[{"$nulls":4},"Pipe Fittings i.e. Bends, Unions, Tee's etc"]
[{"$nulls":4},"28mm - 90° Bend","m",8,null,{"$f":"G1761*H1761","v":0}]
[{"$nulls":4},"22mm - 90° Bend","m",4,null,{"$f":"G1762*H1762","v":0}]
[{"$nulls":4},"15mm - 90° Bend","m",24,null,0]
[{"$nulls":4},"28 - 22 - 28 - Tee ","No",4,null,0]
[{"$nulls":4},"22 - 15 - 22 - Tee","No",2,null,0]
[{"$nulls":4},"15 - 15 - 15 - Tee","No",12,null,0]
[{"$nulls":4},"22mm -15mm - Reducer","No",4,null,0]
[{"$nulls":4},"28mm -15mm - Reducer","No",1,null,0]
[{"$nulls":4},"28mm - Union","m",2,null,0]
[{"$nulls":4},"22mm - Union","m",6,null,0]
[{"$nulls":4},"15mm - Union","m",8,null,0]
[]
[{"$nulls":4},"HOT Water piping (Class 1 Copper)"]
[{"$nulls":4},"22mm ","m",5,null,{"$f":"G1774*H1774","v":0}]
[{"$nulls":4},"15mm ","m",14,null,{"$f":"G1775*H1775","v":0}]
[]
[{"$nulls":4},"Fittings i.e. Bends, Unions, Tee's etc"]
[{"$nulls":4},"15mm -90° Bend","No",12,null,{"$f":"G1778*H1778","v":0}]
[{"$nulls":4},"22mm -90° Bend","No",8,null,{"$f":"G1779*H1779","v":0}]
[{"$nulls":4},"22mm -15mm - Reducer","No",1,null,0]
[{"$nulls":4},"28mm -22mm - Reducer","No",1,null,0]
[{"$nulls":4},"15 -15 -15 - Tee","No",6,null,0]
[{"$nulls":4},"22 -22 -22 - Tee","No",3,null,0]
[{"$nulls":4},"28 -15 -28 - Tee","No",2,null,0]
[]
[{"$nulls":4},"HOT Water piping (Thermaflex 15mm INSULATION)"]
[{"$nulls":4},"22mm ","m",0,null,{"$f":"G1787*H1787","v":0}]
[{"$nulls":4},"15mm ","m",0,null,{"$f":"G1788*H1788","v":0}]
[]
[{"$nulls":4},"VALVES  (Shut off)"]
[{"$nulls":4},"Screw End Copper Alloy Ball Valves 50 -150 mm to BS EN 13547"]
[{"$nulls":4},"28mm","No",2,null,{"$f":"G1792*H1792","v":0}]
[{"$nulls":4},"22mm","No",3,null,{"$f":"G1793*H1793","v":0}]
[]
[{"$nulls":4},"VALVES AND FLEXIHOSE SANITARYWARE"]
[{"$nulls":4},"ITD Chrome Angle Valve 15 x 15mm ","No",8,null,{"$f":"G1796*H1796","v":0}]
[{"$nulls":4},"SS SABS Flexi Hose Braided Connector FXF 15x350mm","No",8,null,{"$f":"G1797*H1797","v":0}]
[]
[{"$nulls":4},"HYDROBOIL "]
[{"$nulls":4},"Compact 7KW hydroboil ","No"]
[]
[{"$nulls":4},"Supply & Delivery of Unit","No",1,null,{"$f":"G1802*H1802","v":0}]
[{"$nulls":4},"Installation","No",1,null,{"$f":"G1803*H1803","v":0}]
[{"$nulls":4},"Commissioning of Unit","No",1,null,0]
[]
[]
[]
[]
[]
[]
[{"$nulls":4},"TOTAL CARRIED FORWARD",{"$nulls":3},{"$f":"SUM(I1732:I1804)","v":0}]
[]
[]
[{"$nulls":4},"TOTAL BROUGHT FORWARD",{"$nulls":3},{"$f":"I1811","v":0}]
[]
[{"$nulls":4},"WASTE DRAINAGE"]
[{"$nulls":4},"Waste Pipe (WP) Drainage Pipe  HDPE PE100 PN 6 - Sch 40. All costs to include pear type brackets, threaded rods, nuts, bolts, all sundries etc."]
[]
[{"$nulls":4},"OD56 - Pipe + Surface mounted and chased in wall","m",14,null,{"$f":"G1819*H1819","v":0}]
[]
[{"$nulls":4},"DRAINAGE FITTINGS - Pipe Fittings i.e. Bends, Unions, Tee's etc"]
[{"$nulls":4},"Waste Pipe (WP) Drainage Pipe fittings HDPE PE100 PN 6 - Sch 40"]
[]
[{"$nulls":4},"OD56 - Cap","No",3,null,{"$f":"G1824*H1824","v":0}]
[{"$nulls":4},"OD56 - 56 Elbow 90 Deg with Cap","No",3,null,{"$f":"G1825*H1825","v":0}]
[{"$nulls":4},"OD50 - 50 Elbow 90 Deg ","No",6,null,0]
[{"$nulls":4},"OD50 - 50 Elbow 45 Deg ","No",4,null,0]
[{"$nulls":4},"OD50 -50 - P-Trap","No",4,null,0]
[{"$nulls":4},"OD56 -50 - Union","No",10,null,0]
[]
[{"$nulls":4},"SEWER DRAINAGE"]
[{"$nulls":4},"Sewer Pipe (SP) Drainage Pipe  HDPE PE100 PN 6 - Sch 40. All costs to include pear type brackets, threaded rods, nuts, bolts, all sundries etc."]
[]
[{"$nulls":4},"110mm HDPE Pipe +Surface mounted to external","m",15,null,{"$f":"G1834*H1834","v":0}]
[{"$nulls":4},"110mm 90 Deg Bend with Cap as IE per toilet outlet","No",2,null,{"$f":"G1835*H1835","v":0}]
[{"$nulls":4},"110mm 45 Deg Branch Connection","No",2,null,0]
[{"$nulls":4},"110mm 45 Deg Bend","No",2,null,0]
[{"$nulls":4},"110mm End Cap","No",2,null,0]
[{"$nulls":4},"110mm - Union","No",5,null,0]
[]
[{"$nulls":4},"COPPER PIPING"]
[{"$nulls":4},"Class O hard drawn copper tubes for domestic plumbing services joined together with soldered capilary fittins as (SABS466/1975)"]
[{"$nulls":4},"22mm","m",4,null,{"$f":"G1843*H1843","v":0}]
[{"$nulls":4},"15mm","m",6,null,{"$f":"G1844*H1844","v":0}]
[]
[{"$nulls":4},"Pipe Fittings i.e. Bends, Unions, Tee's etc"]
[{"$nulls":4},"22mm - 90° Bend","m",2,null,{"$f":"G1847*H1847","v":0}]
[{"$nulls":4},"15mm - 90° Bend","m",4,null,{"$f":"G1848*H1848","v":0}]
[{"$nulls":4},"22 - 15 - 22 - Tee","No",2,null,0]
[{"$nulls":4},"22mm -15mm - Reducer","No",1,null,0]
[{"$nulls":4},"22mm - Union","No",1,null,0]
[{"$nulls":4},"15mm - Union","No",4,null,0]
[]
[{"$nulls":4},"VALVES  (Shut off)"]
[{"$nulls":4},"Screw End Copper Alloy Ball Valves 50 -150 mm to BS EN 13547"]
[{"$nulls":4},"22mm","No",1,null,{"$f":"G1856*H1856","v":0}]
[]
[{"$nulls":4},"VALVES AND FLEXIHOSE SANITARYWARE"]
[{"$nulls":4},"ITD Chrome Angle Valve 15 x 15mm ","No",3,null,{"$f":"G1859*H1859","v":0}]
[{"$nulls":4},"SS SABS Flexi Hose Braided Connector FXF 15x350mm","No",3,null,{"$f":"G1860*H1860","v":0}]
[]
[{"$nulls":4},"WASTE DRAINAGE"]
[{"$nulls":4},"Waste Pipe (WP) Drainage Pipe  HDPE PE100 PN 6 - Sch 40. All costs to include pear type brackets, threaded rods, nuts, bolts, all sundries etc."]
[]
[{"$nulls":4},"OD56 - Pipe + Surface mounted and chased in wall","m",14,null,{"$f":"G1865*H1865","v":0}]
[]
[{"$nulls":4},"DRAINAGE FITTINGS - Pipe Fittings i.e. Bends, Unions, Tee's etc"]
[{"$nulls":4},"Waste Pipe (WP) Drainage Pipe fittings HDPE PE100 PN 6 - Sch 40"]
[]
[{"$nulls":4},"OD56 - Cap","No",2,null,{"$f":"G1870*H1870","v":0}]
[{"$nulls":4},"OD56 - 56 Elbow 90 Deg with Cap","No",2,null,{"$f":"G1871*H1871","v":0}]
[{"$nulls":4},"OD50 - 50 Elbow 90 Deg ","No",1,null,0]
[{"$nulls":4},"OD50 - 50 Elbow 45 Deg ","No",1,null,0]
[{"$nulls":4},"OD50 -50 - P-Trap","No",1,null,0]
[{"$nulls":4},"OD56 -50 - Union","No",3,null,0]
[]
[{"$nulls":4},"SEWER DRAINAGE"]
[{"$nulls":4},"Sewer Pipe (SP) Drainage Pipe  HDPE PE100 PN 6 - Sch 40. All costs to include pear type brackets, threaded rods, nuts, bolts, all sundries etc."]
[]
[{"$nulls":4},"110mm HDPE Pipe +Surface mounted to external","m",6,null,{"$f":"G1880*H1880","v":0}]
[{"$nulls":4},"110mm 90 Deg Bend with Cap as IE per toilet outlet","No",1,null,{"$f":"G1881*H1881","v":0}]
[{"$nulls":4},"110mm 45 Deg Branch Connection","No",1,null,0]
[{"$nulls":4},"110mm 45 Deg Bend","No",1,null,0]
[{"$nulls":4},"110mm End Cap","No",1,null,0]
[{"$nulls":4},"110mm - Union","No",3,null,0]
{"$rows_empty":7}
[{"$nulls":4},"TOTAL CARRIED TO FINAL SUMMARY SECTION",{"$nulls":3},{"$f":"SUM(I1814:I1885)","v":0}]
[]
[]
[]
[{"$nulls":4},"SECTION 5 - ENGINEERING SERVICES"]
[]
[{"$nulls":4},"BILL NO. 02 - MECHANICAL INSTALLATION-HEATING VENTILATION AND AIR-CONDITIONING"]
[]
[{"$nulls":4},"PREAMBLES"]
[]
[{"$nulls":4},"Refer to the attached Specifications for the HVAC Installation. The Tenderer must at all times read the Bills of Quantities in conjuction with the specification and drawings prior to pricing this section."]
[]
[{"$nulls":4},"Verification of Drawings"]
[{"$nulls":4},"Mark up on received engineer layouts for \"as built\" information."]
[]
[{"$nulls":4},"Builder Work Drawings","Item",1,null,{"$f":"G1908*H1908","v":0}]
[]
[{"$nulls":4},"Shop Drawings ","Item",1,null,{"$f":"G1910*H1910","v":0}]
[]
[{"$nulls":4},"O&M Manuals including RECORD Drawings"]
[]
[{"$nulls":4},"Provision for the drawings showing all Equipment, pipe routes, positions, type, component list etc. This cost is for the final STANDARDS compliance installation RECORD Drawings.","No",3,null,{"$f":"G1914*H1914","v":0}]
[]
[{"$nulls":4},"1st Years Maintenace","months",12,null,{"$f":"G1916*H1916","v":0}]
{"$rows_empty":61}
[{"$nulls":4},"TOTAL CARRIED FORWARD",{"$nulls":3},{"$f":"SUM(I1908:I1918)","v":0}]
[]
[]
[{"$nulls":4},"TOTAL BROUGHT FORWARD",{"$nulls":3},{"$f":"I1978","v":0}]
[]
[{"$nulls":4},"COPPER PIPING"]
[{"$nulls":4},"Supply and Installation of copper pipes with bends, tees, elbows, reducers, socket, union etc, as per requirement,drawing and direction. Pipe work shall be complete with pipe hangers,vibration isolator brackets, supports etc. at an interval of 3m.All the pipe fittings otherwise specified shall be pre-moldedthreaded/welded end type. Cutting of pipe thread and sealing the thread with proper type of sealing compund shall be suitable to with stand a test pressure of 15 kg/cm2."]
[]
[{"$nulls":4},"CONDENSATE PIPING"]
[{"$nulls":4},"Supply and Installation of condensate PVC pipes from the indoor unit with bends, tees, elbows, reducers, socket, union etc. Pipe work shall be complete with pipe  brackets, supports etc. at an interval of 3m.All piping to be mounted on the external wall and PAINTED white to match the building colour. Must discharge with a 90 Deg bend."]
[]
[{"$nulls":4},"OPEN PLAN OFFICE "]
[{"$nulls":4},"AD-AC-01 - 3,6 kW Cooling / 4.0 kW Heating"]
[{"$nulls":4},"Price must include for Delivery of units to site, Installation, Commissioning, intercabling, mounting accessories, PVC Trucking, Cable Trays etc.  Refrigerant piping must be vacuum pumped for each unit."]
[]
[{"$nulls":4},"Supply and Delivery of Unit ","No",1,null,{"$f":"G1993*H1993","v":0}]
[{"$nulls":4},"Installation ","No",1,null,{"$f":"G1994*H1994","v":0}]
[{"$nulls":4},"Commissioning of Unit","No",1,null,0]
[]
[{"$nulls":4},"DUCTING"]
[{"$nulls":4},"Galvanised ducting, insulated supply connection between louvre and fan, SABS spec for medium pressure ductwork. (Air passage sizes indicated on tender drawings for measurement confirmations). "]
[]
[{"$nulls":4},"Flexible collar Return and Supply 150mm deep","No",2,null,{"$f":"G2000*H2000","v":0}]
[{"$nulls":4},"Supply MOS to 250x250mm (minimum 450mm in length) to suit the opening size at the air intake of AC unit.","No",1,null,{"$f":"G2001*H2001","v":0}]
[{"$nulls":4},"Straight Supply 250x250mm","m",1.2,null,{"$f":"G2002*H2002","v":0}]
[{"$nulls":4},"Spigot Ø 150mm","No",2,null,0]
[{"$nulls":4},"Stop End 250x250mm","No",1,null,0]
[{"$nulls":4},"Straight Supply  Ø 150mm","m",2,null,0]
[{"$nulls":4},"Internally insulated return air plenum box (minimum 600mm in length), complete with 2x Ø150mm (RA) and Ø 200mm(FA) spigot ","m",1,null,0]
[{"$nulls":4},"Acoustic Insulated flex connected to supply diffusers Ø150mm ","m",3,null,0]
[{"$nulls":4},"Acoustic Insulated flex connected to return grilles Ø150mm ","m",3,null,0]
[{"$nulls":4},"Acoustic Insulated flex connected to Fresh Air Ø200mm ","m",1.5,null,0]
[]
[{"$nulls":4},"Straight FA Supply Ø 200mm","No",2,null,{"$f":"G2011*H2011","v":0}]
[{"$nulls":4},"Filter box 50mm allowance for Pleated filter Media with access for removal and cleaning","No",1,null,{"$f":"G2012*H2012","v":0}]
[{"$nulls":4},"Transformation 300x300mm to Ø 200mm ","No",1,null,0]
[]
[{"$nulls":4},"THERMOSTAT"]
[{"$nulls":4},"Wall Mounted thermostat on a draw box","No",1,null,{"$f":"G2016*H2016","v":0}]
[]
[{"$nulls":4},"COPPER PIPING "]
[{"$nulls":4},"3/8\" ","m",9,null,{"$f":"G2019*H2019","v":0}]
[{"$nulls":4},"5/8\" ","m",9,null,{"$f":"G2020*H2020","v":0}]
[{"$nulls":4},"COPPER PIPING INSULATION"]
[{"$nulls":4},"3/8\" ","m",9,null,{"$f":"G2022*H2022","v":0}]
[{"$nulls":4},"5/8\" ","m",9,null,{"$f":"G2023*H2023","v":0}]
[]
[{"$nulls":4},"CONDENSATE PIPING"]
[{"$nulls":4},"Condensate Pipe with fittings to main header","m",6,null,{"$f":"G2026*H2026","v":0}]
[]
[{"$nulls":4},"CABLING"]
[{"$nulls":4},"Interconnecting cabling 4 m between indoor and outdoor unit","No",1,null,{"$f":"G2029*H2029","v":0}]
[]
[{"$nulls":4},"TICKET BOOTH"]
[{"$nulls":4},"AD-AC-02 - 2,9 kW Cooling / 2,85 kW Heating"]
[{"$nulls":4},"Price must include for Delivery of units to site, Installation, Commissioning, intercabling, mounting accessories, PVC Trucking, Cable Trays etc.  Refrigerant piping must be vacuum pumped for each unit."]
[]
[{"$nulls":4},"Supply and Delivery of Unit ","No",1,null,{"$f":"G2035*H2035","v":0}]
[{"$nulls":4},"Installation ","No",1,null,{"$f":"G2036*H2036","v":0}]
[{"$nulls":4},"Commissioning of Unit","No",1,null,0]
[]
[{"$nulls":4},"THERMOSTAT"]
[{"$nulls":4},"Wall Mounted thermostat on a draw box","No",1,null,{"$f":"G2040*H2040","v":0}]
[]
[{"$nulls":4},"COPPER PIPING "]
[{"$nulls":4},"1/4\" ","m",14,null,{"$f":"G2043*H2043","v":0}]
[{"$nulls":4},"1/2\" ","m",14,null,{"$f":"G2044*H2044","v":0}]
[{"$nulls":4},"COPPER PIPING INSULATION"]
[{"$nulls":4},"1/4\" ","m",14,null,{"$f":"G2046*H2046","v":0}]
[{"$nulls":4},"1/2\" ","m",14,null,{"$f":"G2047*H2047","v":0}]
[{"$nulls":4},"CONDENSATE PIPING"]
[{"$nulls":4},"Condensate Pipe with fittings to main header","m",3,null,{"$f":"G2049*H2049","v":0}]
[]
[{"$nulls":4},"CABLING"]
[{"$nulls":4},"Interconnecting cabling 4 m between indoor and outdoor unit","No",3,null,{"$f":"G2052*H2052","v":0}]
[]
[{"$nulls":4},"TOTAL CARRIED FORWARD",{"$nulls":3},{"$f":"SUM(I1981:I2052)","v":0}]
[]
[{"$nulls":4},"TOTAL BROUGHT FORWARD",{"$nulls":3},{"$f":"I2054","v":0}]
[]
[{"$nulls":4},"ENTRANCE"]
[{"$nulls":4},"AD-AC-03 - 2,9 kW Cooling / 2,85 kW Heating"]
[{"$nulls":4},"Price must include for Delivery of units to site, Installation, Commissioning, intercabling, mounting accessories, PVC Trucking, Cable Trays etc.  Refrigerant piping must be vacuum pumped for each unit."]
[]
[{"$nulls":4},"Supply and Delivery of Unit ","No",1,null,{"$f":"G2062*H2062","v":0}]
[{"$nulls":4},"Installation ","No",1,null,{"$f":"G2063*H2063","v":0}]
[{"$nulls":4},"Commissioning of Unit","No",1,null,0]
[]
[{"$nulls":4},"THERMOSTAT"]
[{"$nulls":4},"Wall Mounted thermostat on a draw box","No",{"v":1,"d":"R1.00"},null,{"$f":"G2067*H2067","v":0}]
[]
[{"$nulls":4},"COPPER PIPING "]
[{"$nulls":4},"1/4\" ","m",14,null,{"$f":"G2070*H2070","v":0}]
[{"$nulls":4},"1/2\" ","m",14,null,{"$f":"G2071*H2071","v":0}]
[]
[]
[{"$nulls":4},"COPPER PIPING INSULATION"]
[{"$nulls":4},"1/4\" ","m",14,null,{"$f":"G2075*H2075","v":0}]
[{"$nulls":4},"1/2\" ","m",14,null,{"$f":"G2076*H2076","v":0}]
[]
[{"$nulls":4},"CONDENSATE PIPING"]
[{"$nulls":4},"Condensate Pipe with fittings to main header 25mm","m",3,null,{"$f":"G2079*H2079","v":0}]
[{"$nulls":4},"Condensate Pipe with fittings main header 32mm","m",4,null,{"$f":"G2080*H2080","v":0}]
[]
[{"$nulls":4},"CABLING"]
[{"$nulls":4},"Interconnecting cabling 4 m between indoor and outdoor unit","No",3,null,{"$f":"G2083*H2083","v":0}]
[]
[{"$nulls":4},"FRESH AIR "]
[{"$nulls":4},"Straight FA Supply Ø 200mm","No",8,null,{"$f":"G2086*H2086","v":0}]
[{"$nulls":4},"Filter box 50mm allowance for Pleated filter Media with access for removal and cleaning","No",1,null,{"$f":"G2087*H2087","v":0}]
[{"$nulls":4},"Transformation 300x300mm to Ø 200mm ","No",1,null,0]
[{"$nulls":4},"Straight FA Spigot Ø 80mm",null,2,null,0]
[{"$nulls":4},"Acoustic Insulated flex connected to supply diffusers Ø80mm ","m",1.2,null,0]
[{"$nulls":8},0]
[{"$nulls":4},"MANUAL BLADE DAMPERS",{"$nulls":3},0]
[{"$nulls":4},"MBD Ø 200mm","No",1,null,0]
[{"$nulls":4},"MBD Ø 80mm","No",2,null,0]
[]
[{"$nulls":4},"CABLE TRAYS"]
[{"$nulls":4},"CABLE TRAYS - Wire Mesh 100mm","m",24,null,{"$f":"G2097*H2097","v":0}]
[]
[{"$nulls":4},"SECURITY ROOM 1"]
[{"$nulls":4},"AD-AC-02 - 2,9 kW Cooling / 2,85 kW Heating"]
[{"$nulls":4},"Price must include for Delivery of units to site, Installation, Commissioning, intercabling, mounting accessories, PVC Trucking, Cable Trays etc.  Refrigerant piping must be vacuum pumped for each unit."]
[]
[{"$nulls":4},"Supply and Delivery of Unit ","No",1,null,{"$f":"G2103*H2103","v":0}]
[{"$nulls":4},"Installation ","No",1,null,{"$f":"G2104*H2104","v":0}]
[{"$nulls":4},"Commissioning of Unit","No",1,null,0]
[]
[{"$nulls":4},"THERMOSTAT"]
[{"$nulls":4},"Wall Mounted thermostat on a draw box","No",1,null,{"$f":"G2108*H2108","v":0}]
[]
[{"$nulls":4},"COPPER PIPING "]
[{"$nulls":4},"1/4\" ","m",4,null,{"$f":"G2111*H2111","v":0}]
[{"$nulls":4},"1/2\" ","m",4,null,{"$f":"G2112*H2112","v":0}]
[{"$nulls":4},"COPPER PIPING INSULATION"]
[{"$nulls":4},"1/4\" ","m",4,null,{"$f":"G2114*H2114","v":0}]
[{"$nulls":4},"1/2\" ","m",4,null,{"$f":"G2115*H2115","v":0}]
[]
[{"$nulls":4},"CONDENSATE PIPING"]
[{"$nulls":4},"Condensate Pipe with fittings to main header","m",6,null,{"$f":"G2118*H2118","v":0}]
[]
[{"$nulls":4},"CABLING"]
[{"$nulls":4},"Interconnecting cabling 4 m between indoor and outdoor unit","No",2,null,{"$f":"G2121*H2121","v":0}]
[]
[{"$nulls":4},"SECURITY ROOM 2"]
[{"$nulls":4},"AD-AC-02 - 2,9 kW Cooling / 2,85 kW Heating"]
[{"$nulls":4},"Price must include for Delivery of units to site, Installation, Commissioning, intercabling, mounting accessories, PVC Trucking, Cable Trays etc.  Refrigerant piping must be vacuum pumped for each unit."]
[]
[{"$nulls":4},"Supply and Delivery of Unit ","No",1,null,{"$f":"G2127*H2127","v":0}]
[{"$nulls":4},"Installation ","No",1,null,{"$f":"G2128*H2128","v":0}]
[{"$nulls":4},"Commissioning of Unit","No",1,null,0]
{"$rows_empty":7}
[{"$nulls":4},"TOTAL CARRIED FORWARD",{"$nulls":3},{"$f":"SUM(I2056:I2129)","v":0}]
[]
[]
[{"$nulls":4},"TOTAL BROUGHT FORWARD",{"$nulls":3},{"$f":"I2137","v":0}]
[]
[{"$nulls":4},"THERMOSTAT"]
[{"$nulls":4},"Wall Mounted thermostat on a draw box","No",1,null,{"$f":"G2143*H2143","v":0}]
[]
[{"$nulls":4},"COPPER PIPING "]
[{"$nulls":4},"1/4\" ","m",8,null,{"$f":"G2146*H2146","v":0}]
[{"$nulls":4},"1/2\" ","m",8,null,{"$f":"G2147*H2147","v":0}]
[{"$nulls":4},"COPPER PIPING INSULATION"]
[{"$nulls":4},"1/4\" ","m",8,null,{"$f":"G2149*H2149","v":0}]
[{"$nulls":4},"1/2\" ","m",8,null,{"$f":"G2150*H2150","v":0}]
[]
[{"$nulls":4},"CONDENSATE PIPING"]
[{"$nulls":4},"Condensate Pipe with fittings to main header","m",9,null,{"$f":"G2153*H2153","v":0}]
[]
[{"$nulls":4},"CABLING"]
[{"$nulls":4},"Interconnecting cabling 4 m between indoor and outdoor unit","No",2,null,{"$f":"G2156*H2156","v":0}]
{"$rows_empty":67}
[{"$nulls":4},"TOTAL CARRIED TO FINAL SUMMARY",{"$nulls":3},{"$f":"SUM(I2140:I2156)","v":0}]
[]
[]
[]
[{"$nulls":4},"SECTION 5 - ENGINEERING SERVICES"]
[]
[{"$nulls":4},"BILL NO. 03 - ELECTRICAL WORK"]
[]
[]
[{"$nulls":4},"PREAMBLES"]
[]
[{"$nulls":4},"Refer to the attached Specifications for the Electrical Installation. The Tenderer must at all times read the Bills of Quantities in conjuction with the specification and drawings prior to pricing this section."]
[]
[{"$nulls":4},"Guarantee and Maintenance:"]
[{"$nulls":4},"Guarantee and maintenance for the complete installation of Electrical Installation including fittings, materials and workmanship for a period of TWELVE MONTHS after date of completion and handover.","No.",1,null,{"$f":"H2238*G2238","v":0}]
[]
[{"$nulls":4},"Testing:"]
[{"$nulls":4},"Allow for testing, balancing and commissioning the whole of the electrical installation as laid down in the specification and for re-testing as may be required after the making good of all defective work to the satisfaction of the Electrical Engineer.","No.",1,null,{"$f":"H2241*G2241","v":0}]
[]
[{"$nulls":4},"As-Built Drawings:"]
[{"$nulls":4},"Provision for the drawings showing all site cable routes, conduit routes, draw boxes and positions of outlets, etc.","No.",1,null,{"$f":"H2244*G2244","v":0}]
[]
[{"$nulls":4},"Certificate of Compliance:"]
[{"$nulls":4},"Provision for the Certificate of Compliance to be issued on completion of the project.","No.",1,null,{"$f":"H2247*G2247","v":0}]
[]
[{"$nulls":4},"Earthing and bonding:"]
[{"$nulls":4},"Allow for earthing and bonding a required by the applicable regulations and the Engineers requirements. ","No.",1,null,{"$f":"H2250*G2250","v":0}]
[]
[{"$nulls":4},"Labelling and Marking:"]
[{"$nulls":4},"Allow for marking and labelling of all equipment, cables, plugs, light switches etc.","No.",1,null,{"$f":"H2253*G2253","v":0}]
[]
[{"$nulls":4},"Coordination"]
[{"$nulls":4},"Allow for general coordination with the sub-contractors. Electrical contractor to ensure that all provisions required by the sub-contractors are allowed for to avoid remedial or corrective work in the later stages of the project.","No.",1,null,{"$f":"H2256","v":0}]
{"$rows_empty":46}
[{"$nulls":4},"TOTAL CARRIED FORWARD",{"$nulls":3},{"$f":"SUM(I2238:I2256)","v":0}]
[]
[{"$nulls":4},"TOTAL BROUGHT FORWARD",{"$nulls":3},{"$f":"I2303","v":0}]
[]
[{"$nulls":4},"Excavations:"]
[]
[{"$nulls":4},"Excavations other than bulk in soft excavation not exceeding 2m deep for:"]
[]
[{"$nulls":4},"Allowance is to be made for the installation of cable markers and warning sheets"]
[]
[{"$nulls":4},"In trenches for cables and sleeves","m3",50,null,{"$f":"H2313*G2313","v":0}]
[]
[{"$nulls":4},"Filling obtained from excavations and/or prescribed stock piles on site compacted to 95% Mod AASHTO dencity"]
[]
[{"$nulls":4},"Backfilling of trenches","m3",20,null,{"$f":"H2317*G2317","v":0}]
[]
[{"$nulls":4},"Risk of collapse of excavations other than bulk"]
[]
[{"$nulls":4},"Sides of trenches and hole excavations not exceeding 1.5m deep","m3",15,null,{"$f":"H2321*G2321","v":0}]
[]
[{"$nulls":4},"Cable Sleeves:"]
[{"$nulls":4},"Supply and Installation of Cable Sleeves as specified, in trenches or cast in concrete, excluding trenching or backfilling."]
[]
[{"$nulls":4},"110mm Ø Rigid Cable Sleeve","m",150,null,{"$f":"H2326*G2326","v":0}]
[]
[]
[{"$nulls":4},"Distribution Boards:"]
[{"$nulls":4},"Supply, installation and commissioning of Distribution Boards, including making off all wire connections (external wiring, conduit, armoured cable and terminations given elsewhere)."]
[]
[{"$nulls":4},"Main DB-A","No.",1,null,{"$f":"H2332*G2332","v":0}]
[]
[]
[{"$nulls":4},"Sub-DB-B","No.",1,null,{"$f":"H2335*G2335","v":0}]
[]
[]
[{"$nulls":4},"Kiosk","No.",1,null,{"$f":"H2338*G2338","v":0}]
[]
[]
[{"$nulls":4},"Cables:"]
[{"$nulls":4},"Supply, delivery and laying of PVC/SWA/PVC ECC copper cables as specified, excluding terminations and cable supports.  Lengths given shall be taken as measured lengths to cable runs from terminal to terminal and rates quoted shall include for off-cuts, wastage, couplings, bending, jointing sockets and tees  "]
[]
[{"$nulls":4},"25mm² 2 core PVC/SWA/PVC ECC Cable","m",100,null,{"$f":"H2344*G2344","v":0}]
[]
[]
[{"$nulls":4},"16mm² 2 core PVC/SWA/PVC ECC Cable","m",200,null,{"$f":"H2347*G2347","v":0}]
[]
[]
[{"$nulls":4},"6mm² 3 core PVC/SWA/PVC ECC Cable","m",400,null,{"$f":"H2350*G2350","v":0}]
[]
[]
[{"$nulls":4},"Cable Termination:"]
[{"$nulls":4},"Including the supply and fitting of Prately Cable gland, shroud, making off the cable and fitting the gland plates, switchgear or equipment including final connections of cable tails with lugs onto board terminals and including earth in ECC cable.    "]
[]
[{"$nulls":4},"25mm² 2 core PVC/SWA/PVC ECC Cable","No.",4,null,{"$f":"H2356*G2356","v":0}]
[]
[]
[{"$nulls":4},"16mm² 2 core PVC/SWA/PVC ECC Cable","No.",4,null,{"$f":"H2359*G2359","v":0}]
[]
[]
[{"$nulls":4},"6mm² 3 core PVC/SWA/PVC ECC Cable","No.",70,null,{"$f":"H2362*G2362","v":0}]
[]
[]
[{"$nulls":4},"Cable Markers:"]
[{"$nulls":4},"Supply and install of Cable marker tape layed side by side in trenches, 300mm above cable sleeve."]
[]
[{"$nulls":4},"PVC warning marking tape","m",20,null,{"$f":"H2368*G2368","v":0}]
[]
[]
[{"$nulls":4},"Cable Tray:"]
[{"$nulls":4},"Supply and installation of the following Perforated Metal Cable Trays including splice sets as per Cabstrut:"]
[]
[{"$nulls":4},"200mm Heavy Duty Cable Tray","m",2,null,{"$f":"H2374*G2374","v":0}]
[]
[]
[]
[]
[]
[{"$nulls":4},"TOTAL CARRIED FORWARD",{"$nulls":3},{"$f":"SUM(I2305:I2374)","v":0}]
[]
[]
[]
[]
[{"$nulls":4},"TOTAL BROUGHT FORWARD",{"$nulls":3},{"$f":"I2380","v":0}]
[]
[]
[{"$nulls":4},"4mm² PVC Conductors","m",3000,null,{"$f":"H2388*G2388","v":0}]
[]
[{"$nulls":4},"Earth Conductors:"]
[{"$nulls":4},"Supply and drawing into conduit PVC insulated earth conductors, excluding any connections"]
[]
[{"$nulls":4},"2.5mm² Conductors","m",{"$f":"2700","v":2700},null,{"$f":"H2393*G2393","v":0}]
[]
[{"$nulls":4},"Light Switches/ Occupancy Sensors:"]
[{"$nulls":4},"Supply, fitting and electrical connection of a flush or surface mounted 16A switch in 100 x 50 excluding box (for flush type) and conduit connections, but including cover plates."]
[]
[{"$nulls":4},"16A 1 Lever 1 Way","No.",13,null,{"$f":"H2398*G2398","v":0}]
[]
[{"$nulls":4},"16A 1 Lever 2 Way","No.",2,null,{"$f":"H2400*G2400","v":0}]
[]
[{"$nulls":4},"Occupancy Sensors (Rubicon)","No.",13,null,{"$f":"H2402*G2402","v":0}]
[]
[{"$nulls":4},"Socket Outlets:"]
[{"$nulls":4},"Supply, fitting and electrical connection of flush or surface mounted switched socket in either 100 x 100, 100 x 50, round box or wiring channel, excluding box (for flush type) and conduit connections, but including cover plate."]
[]
[{"$nulls":4},"16A Double SSO c/w coverplate","No.",3,null,{"$f":"H2407*G2407","v":0}]
[]
[{"$nulls":4},"16A SSO + Euro c/w coverplate","No.",9,null,{"$f":"H2409*G2409","v":0}]
[]
[{"$nulls":4},"5A 3 Pin unswitched socket outlet in round box.","No.",62,null,{"$f":"H2411*G2411","v":0}]
[]
[]
[{"$nulls":4},"Daylight Switch:"]
[{"$nulls":4},"Supply and installation of approved daylight switch."]
[]
[{"$nulls":4},"Royce-Thompson Daylight Switch","No.",3,null,{"$f":"H2417*G2417","v":0}]
[]
[{"$nulls":4},"Powerskirting:"]
[{"$nulls":4},"Supply & Installation of powerskirting equipment as specified. As per P801 Cabstrut."]
[]
[{"$nulls":4},"Powerskirting","No",27,null,{"$f":"H2422*G2422","v":0}]
[]
[]
[{"$nulls":4},"Elbows Internal/External","No.",6,null,{"$f":"H2425*G2425","v":0}]
[]
[]
[{"$nulls":4},"End Caps","No.",11,null,{"$f":"H2428*G2428","v":0}]
[]
[]
[{"$nulls":4},"Body Joint","No.",11,null,{"$f":"G2431*H2431","v":0}]
[]
[]
[{"$nulls":4},"Cover Joint","No.",11,null,{"$f":"G2434*H2434","v":0}]
[]
[]
[{"$nulls":4},"16A SSO's c/w cover on Powerskirting Crabtree","No.",8,null,{"$f":"H2437*G2437","v":0}]
[]
[]
[{"$nulls":4},"16A SSO's Dedicated c/w cover on Powerskirting Crabtree","No.",8,null,{"$f":"H2440*G2440","v":0}]
[]
[]
[{"$nulls":4},"16A Euro c/w cover on Powerskirting Crabtree","No.",8,null,{"$f":"H2443*G2443","v":0}]
[]
[]
[{"$nulls":4},"RJ11 Connector with cradle/cover and mod blank","No.",8,null,{"$f":"H2446*G2446","v":0}]
[]
[]
[{"$nulls":4},"RJ45 Connector with cradle/cover and mod blank","No.",8,null,{"$f":"H2449*G2449","v":0}]
[]
[]
[{"$nulls":4},"Isolators:"]
[{"$nulls":4},"Supply, fitting and electrical connection of flush or surface mounted Metal Clad Isolators in either 100 x 100, 100 x 50, round box or wiring channel, excluding box (for flush type) and conduit connections, but including cover plate."]
[]
[{"$nulls":4},"10A SP Flush Isolator (Extractor Fans in Toilets)","No.",5,null,{"$f":"H2455*G2455","v":0}]
[]
[]
[{"$nulls":4},"20A SP Flush Isolator (AC)","No.",5,null,{"$f":"H2458*G2458","v":0}]
[]
[{"$nulls":4},"45A SP Flush Isolator (Hand Dryer)","No.",4,null,{"$f":"H2460*G2460","v":0}]
[]
[{"$nulls":4},"45A SP Flush Isolator (Hydro-boil)","No.",1,null,{"$f":"H2462*G2462","v":0}]
[]
[{"$nulls":4},"TOTAL CARRIED FORWARD",{"$nulls":3},{"$f":"SUM(I2385:I2462)","v":0}]
[]
[{"$nulls":4},"TOTAL BROUGHT FORWARD",{"$nulls":3},{"$f":"I2464","v":0}]
[]
[{"$nulls":4},"Appliance Connection:"]
[{"$nulls":4},"Electrical connection of appliances.Equipment supplied and installed by others."]
[]
[{"$nulls":4},"Extractor Fans","No.",3,null,{"$f":"H2471*G2471","v":0}]
[]
[{"$nulls":4},"Airconditioners, single phase","No.",3,null,{"$f":"H2473*G2473","v":0}]
[]
[{"$nulls":4},"Hydroboil","No.",3,null,{"$f":"H2475*G2475","v":0}]
[]
[{"$nulls":4},"Handryer","No.",4,null,{"$f":"H2477*G2477","v":0}]
[]
[{"$nulls":4},"Draw Wire:"]
[]
[{"$nulls":4},"0,6mm diameter galvanised draw wires drawn into wireways","m",400,null,{"$f":"H2481*G2481","v":0}]
[]
[{"$nulls":4},"HVAC Installation:"]
[{"$nulls":4},"Supply and installation of the following items for the HVAC Installation."]
[]
[{"$nulls":4},"25mm PVC Conduit","m",150,null,{"$f":"H2486*G2486","v":0}]
[]
[{"$nulls":4},"25mm PVC Conduit end","No.",6,null,{"$f":"H2488*G2488","v":0}]
[]
[{"$nulls":4},"25mm PVC Conduit box ","No.",6,null,{"$f":"H2490*G2490","v":0}]
[]
[{"$nulls":4},"Telephone Installation:"]
[{"$nulls":4},"Supply and installation of the following items for the Telephone Installation."]
[]
[{"$nulls":4},"25mm PVC Conduit","m",20,null,{"$f":"H2495*G2495","v":0}]
[]
[{"$nulls":4},"25mm PVC Conduit end","No.",2,null,{"$f":"H2497*G2497","v":0}]
[]
[{"$nulls":4},"25mm PVC Conduit box ","No.",2,null,{"$f":"H2499*G2499","v":0}]
[]
[{"$nulls":4},"Blank Covers","No.",2,null,{"$f":"H2501*G2501","v":0}]
[]
[{"$nulls":4},"Data Installation:"]
[{"$nulls":4},"Supply and installation of the following items for the Data Installation."]
[]
[{"$nulls":4},"25mm PVC Conduit","m",20,null,{"$f":"H2506*G2506","v":0}]
[]
[{"$nulls":4},"25mm PVC Conduit end","No.",6,null,{"$f":"H2508*G2508","v":0}]
[]
[{"$nulls":4},"25mm PVC Conduit box ","No.",6,null,{"$f":"H2510*G2510","v":0}]
[]
[{"$nulls":4},"Lightning Protection & Earthing Installation:"]
[{"$nulls":4},"Supply and installation of the following items for the Lightning Protection & Earthing Installation."]
[]
[{"$nulls":4},"25mm PVC Conduit","m",100,null,{"$f":"H2515*G2515","v":0}]
[]
[{"$nulls":4},"25mm PVC Conduit end","No.",5,null,{"$f":"H2517*G2517","v":0}]
[]
[{"$nulls":4},"25mm PVC Conduit box and end","No.",5,null,{"$f":"H2519*G2519","v":0}]
[]
[{"$nulls":4},"Handryer & Hydroboil Installation:"]
[{"$nulls":4},"Supply and installation of the following items for the Handryer and Hybroboil Installation."]
[]
[{"$nulls":4},"25mm PVC Conduit","m",50,null,{"$f":"H2524*G2524","v":0}]
[]
[{"$nulls":4},"25mm PVC Conduit end","No.",7,null,{"$f":"H2526*G2526","v":0}]
[]
[{"$nulls":4},"25mm PVC Conduit box ","No.",7,null,{"$f":"H2528*G2528","v":0}]
[]
[{"$nulls":4},"Luminaires"]
[{"$nulls":4},"Installation of the following luminaires, complete with lamps as specified. Please refer to sec E of the specification for more details on the luminaires."]
[]
[{"$nulls":4},"Type A1 - RUBICON - SAXA LED TRIPROOF 1.5M\t\t\t\t\t\t\t\t\tIP65 54W-4000K 0.6M CABLE \t\t\t\t\t\t\t\t\tDUAL 120LM/W -  ","No.",22,null,{"$f":"G2533*H2533","v":0}]
[]
[]
[{"$nulls":4},"Type AIE - RUBICON - SAXA LED TRIPROOF 1.5M\t\t\t\t\t\t\t\t\tIP65 54W-4000K 0.6M CABLE  \t\t\t\t\t\t\t\t\tDUAL 120LM/W WITH 1\t\t\t\t\t\t\t\t\t\tHOUR BATTERY PACK ","No.",10,null,{"$f":"G2536*H2536","v":0}]
[]
[]
[{"$nulls":4},"Type B1 - RUBICON - THEIA LED RECESSED\t\t\t\t\t\t\t\t\t\tPANEL 30W 600X600 4000K \t\t\t\t\t\t\t\t\tFF C/W CS ","No.",20,null,{"$f":"G2539*H2539","v":0}]
[]
[{"$nulls":4},"Type B1E - THEIA LED RECESSED\t\t\t\t\t\t\t\t\t\tPANEL 30W 600X600 4000K \t\t\t\t\t\t\t\t\tFF C/W CS WITH 1\t\t\t\t\t\t\t\t\t\tHOUR BATTERY PACK ","No.",10,null,{"$f":"G2541*H2541","v":0}]
[]
[]
[{"$nulls":4},"Type D1 - AEGEON LED DL 20W \t\t\t\t\t\t\t\t\t\t4000K 120LM/W- \t\t\t\t\t\t\t\t\t\tRECESSED + CS ","No.",6,null,{"$f":"G2544*H2544","v":0}]
[]
[{"$nulls":4},"TOTAL CARRIED FORWARD",{"$nulls":3},{"$f":"SUM(I2466:I2544)","v":0}]
[]
[{"$nulls":4},"TOTAL BROUGHT FORWARD",{"$nulls":3},{"$f":"I2546","v":0}]
[]
[{"$nulls":4},"Type D1E - AEGEON LED DL 20W \t\t\t\t\t\t\t\t\t\t4000K 120LM/W- \t\t\t\t\t\t\t\t\t\tRECESSED + CS WITH 1\t\t\t\t\t\t\t\t\tHOUR BATTERY PACK ","No.",5,null,{"$f":"G2550*H2550","v":0}]
[]
[]
[{"$nulls":4},"Type J1 -SATURN RND LED \t\t\t\t\t\t\t\t\t\tBULKHEAD-BLACK-15W- \t\t\t\t\t\t\t\t\t4000K-IP65 ","No.",7,null,{"$f":"G2553*H2553","v":0}]
[]
[]
[{"$nulls":4},"Type J1E - SATURN RND LED \t\t\t\t\t\t\t\t\t\tBULKHEAD-BLACK-15W- \t\t\t\t\t\t\t\t\t4000K-IP65 WITH 1\t\t\t\t\t\t\t\t\t\tHOUR BATTERY PACK ","No.",4,null,{"$f":"G2556*H2556","v":0}]
[]
[{"$nulls":4},"Type P1 - LORO POST TOP-42W \t\t\t\t\t\t\t\t\tLED-4000K-INCLUDING 6M \t\t\t\t\t\t\t\t\tMT H GALVANIZED POLE ","No.",10,null,{"$f":"G2558*H2558","v":0}]
{"$rows_empty":70}
[{"$nulls":4},"TOTAL CARRIED TO FINAL SUMMARY",{"$nulls":3},{"$f":"SUM(I2548:I2558)","v":0}]
[]
[]
[{"$nulls":4},"SECTION SUMMARY"]
[]
[{"$nulls":4},"BILL NO. 2 EARTHWORKS (PROVISIONAL)",{"$nulls":3},{"$f":"I90","v":0}]
[]
[{"$nulls":4},"BILL NO. 3 :CONCRETE, FORMWORK AND REINFORCEMENT",{"$nulls":3},{"$f":"I257","v":0}]
[]
[{"$nulls":4},"BILL NO. 4 : MASONRY",{"$nulls":3},{"$f":"I338","v":0}]
[]
[{"$nulls":4},"BILL NO. 5 : WATERPROOFING",{"$nulls":3},{"$f":"I425","v":0}]
[]
[{"$nulls":4},"BILL NO. 6 : ROOF COVERING",{"$nulls":3},{"$f":"I503","v":0}]
[]
[{"$nulls":4},"BILL NO. 7 : CARPENTRY AND JOINERY, ETC.",{"$nulls":3},{"$f":"I572","v":0}]
[]
[{"$nulls":4},"BILL NO. 8 : CEILINGS, PARTITIONS AND ACCESS FLOORING",{"$nulls":3},{"$f":"I649","v":0}]
[]
[{"$nulls":4},"BILL NO. 9 : FLOOR COVERINGS, WALL LININGS, ETC",{"$nulls":3},{"$f":"I734","v":0}]
[]
[{"$nulls":4},"BILL NO. 10 : BATHROOM FITTINGS",{"$nulls":3},{"$f":"I812","v":0}]
[]
[{"$nulls":4},"BILL NO. 11 : METALWORKS",{"$nulls":3},{"$f":"I975","v":0}]
[]
[{"$nulls":4},"BILL NO. 12 : PLASTERING",{"$nulls":3},{"$f":"I1060","v":0}]
[]
[{"$nulls":4},"BILL NO. 13 : GLAZING",{"$nulls":3},{"$f":"I1145","v":0}]
[]
[{"$nulls":4},"BILL NO. 14 : PAINTWORK",{"$nulls":3},{"$f":"I1226","v":0}]
[]
[{"$nulls":4},"BILL NO.15 STRUCTURAL STEEL WORKS",{"$nulls":3},{"$f":"I1311","v":0}]
[]
[{"$nulls":4},"EXTERNAL WORKS",{"$nulls":3},{"$f":"I1564","v":{"v":6500,"d":"R6,500.00"}}]
[]
[{"$nulls":4},"PROVISIONAL SUMS",{"$nulls":3},{"$f":"I1644","v":{"v":1761000,"d":"R1,761,000.00"}}]
[]
[]
[{"$nulls":4},"TOTAL CARRIED FORWARD TO FINAL SUMMARY",{"$nulls":3},{"$f":"SUM(I2634:I2665)","v":{"v":1767500,"d":"R1,767,500.00"}}]

{"sheet":"SUMMARY","index":2,"n_rows":23,"n_cols":3,"rows_kept":23,"merged":[[0,0,0,2]]}
["FREEDOM PARK SECURITY GATE SUMMARY PAGE "]
[]
["ITEM","Final Summary","Totals"]
[]
[1,"Preliminary and Generals",{"$f":"'P&Gs'!I2215","v":{"v":0,"d":"R0.00"}}]
[]
[2,"Main works",{"v":0,"d":"R0.00"}]
[]
[null,"Mechanical - Internal Wet Services",{"$f":"'Freedom Park Security Gate BoQ'!I1893","v":{"v":0,"d":"R0.00"}}]
[]
[null,"Mechanical - HVAC",{"$f":"'Freedom Park Security Gate BoQ'!I2224","v":{"v":0,"d":"R0.00"}}]
[]
[null,"Electrical and Electronics",{"$f":"'Freedom Park Security Gate BoQ'!I2629","v":{"v":0,"d":"R0.00"}}]
[]
[null,"Sub-Total 1",{"v":0,"d":"R0.00"}]
[]
[4,"Contigency @ 10%",{"v":0,"d":"R0.00"}]
[]
[5,"Sub -Total 2",{"v":0,"d":"R0.00"}]
[]
[6,"VAT @ 15%",{"v":0,"d":"R0.00"}]
[]
[7,"Carried to Form of Tender",{"v":0,"d":"R0.00"}]